Body Name,Body,Service Level,Expense Type,Expense Code,Narrative,Date,Transaction Number,Amount,Capital and Revenue,Supplier Name,Supplier ID
South Ribble Borough Council,http://statistics.data.gov.uk/id/local-authority/30UE,Homelessness,Contributions to Other Bodies,4730,"RIA - SN The Martindales, Account ref 50024294",05/01/2022,0000474526,477.06,Revenue,ACCENT FOUNDATION,0
South Ribble Borough Council,http://statistics.data.gov.uk/id/local-authority/30UE,Central Support Services,Short Course,1402,"Officer Training on Regulation of Investigatory Powers Act 2000 for Chorley and South Ribble Borough Council, 12 January 2022, Chorley Town Hall",12/01/2022,0000474607,"2,575.00",Revenue,Act Now Training,0
South Ribble Borough Council,http://statistics.data.gov.uk/id/local-authority/30UE,Community Development,Core Fund,4861,Supply and install hand rail at the Eagle and Child bowling green as per agreed,12/01/2022,0000474608,"2,944.80",Revenue,ALBEN LANDSCAPES,0
South Ribble Borough Council,http://statistics.data.gov.uk/id/local-authority/30UE,Recreation & Sport,Reactive Repair & Maintenance,2020,"External Preparation & Painting Works to Various Leisure Centres, Bamber Bridge, South Ribble Tennis, Penwortham, Leyland Leisure Centre",26/01/2022,0000474879,"6,842.00",Revenue,Alfred Bagnall & Sons (North West) Limited,0
South Ribble Borough Council,http://statistics.data.gov.uk/id/local-authority/30UE,Local Tax Collection,Bank Charges,4811,post office,19/01/2022,0000474775,581.90,Revenue,ALLPAY LTD,0
South Ribble Borough Council,http://statistics.data.gov.uk/id/local-authority/30UE,Local Tax Collection,Bank Charges,4811,paypoint,19/01/2022,0000474775,69.13,Revenue,ALLPAY LTD,0
South Ribble Borough Council,http://statistics.data.gov.uk/id/local-authority/30UE,Local Tax Collection,Bank Charges,4811,webconn,19/01/2022,0000474775,46.00,Revenue,ALLPAY LTD,0
South Ribble Borough Council,http://statistics.data.gov.uk/id/local-authority/30UE,Recreation & Sport,Operational Equip & Tools,4010,"Network cabling and other work to be completed at the following site, Penwortham Leisure Centre, As per Quote SQ-235",12/01/2022,0000474609,"1,580.00",Revenue,AMPEC Limited,0
South Ribble Borough Council,http://statistics.data.gov.uk/id/local-authority/30UE,Recreation & Sport,Operational Equip & Tools,4010,"Network cabling and other work to be completed at the following site, South Ribble Tennis Centre, As per Quote SQ-235",12/01/2022,0000474609,"1,470.00",Revenue,AMPEC Limited,0
South Ribble Borough Council,http://statistics.data.gov.uk/id/local-authority/30UE,Recreation & Sport,Operational Equip & Tools,4010,"Network cabling and other work to be completed at the following site, Bamber Bridge Leisure Centres, As per Quote SQ-235",12/01/2022,0000474609,"1,450.00",Revenue,AMPEC Limited,0
South Ribble Borough Council,http://statistics.data.gov.uk/id/local-authority/30UE,Recreation & Sport,Operational Equip & Tools,4010,"Network cabling and other work to be completed at the following site, Leyland Leisure Centre, As per Quote SQ-235",12/01/2022,0000474609,"1,335.00",Revenue,AMPEC Limited,0
South Ribble Borough Council,http://statistics.data.gov.uk/id/local-authority/30UE,Recreation & Sport,Water Charges(Metered),2511,7/11 to 6/12/21,12/01/2022,0000474295,758.12,Revenue,Anglian Water Business (National) t/as Wave Utilit,0
South Ribble Borough Council,http://statistics.data.gov.uk/id/local-authority/30UE,Recreation & Sport,Water Charges(Metered),2511,7/11 to 6/12/21,12/01/2022,0000474297,"1,324.41",Revenue,Anglian Water Business (National) t/as Wave Utilit,0
South Ribble Borough Council,http://statistics.data.gov.uk/id/local-authority/30UE,Recreation & Sport,Water Charges(Metered),2511,7/10 to 6/11/21,12/01/2022,0000474298,"1,241.07",Revenue,Anglian Water Business (National) t/as Wave Utilit,0
South Ribble Borough Council,http://statistics.data.gov.uk/id/local-authority/30UE,Recreation & Sport,Water Charges(Metered),2511,7/11 to 6/12/21,12/01/2022,0000474299,656.38,Revenue,Anglian Water Business (National) t/as Wave Utilit,0
South Ribble Borough Council,http://statistics.data.gov.uk/id/local-authority/30UE,Recreation & Sport,Water Charges(Metered),2511,7/10 to 6/11/21,12/01/2022,0000474300,"1,055.07",Revenue,Anglian Water Business (National) t/as Wave Utilit,0
South Ribble Borough Council,http://statistics.data.gov.uk/id/local-authority/30UE,Recreation & Sport,Water Charges(Metered),2511,7/11 to 6/12/21,12/01/2022,0000474301,808.83,Revenue,Anglian Water Business (National) t/as Wave Utilit,0
South Ribble Borough Council,http://statistics.data.gov.uk/id/local-authority/30UE,Capital,Capital Grant,C570,DFG WORK FOR ADAPTATION FOR LEVEL ACCESS BATHROOM AT ADDRESS REDACTED AS PER SRBC PLANS CLIENT CONTRIBUTION,12/01/2022,0000474653,"3,632.04",Revenue,APG DOMESTIC SERVICES,0
South Ribble Borough Council,http://statistics.data.gov.uk/id/local-authority/30UE,Central Support Services,Short Course,1402,"AEA Annual Conference 2022, Attendees: NAMES REDACTED",12/01/2022,0000474214,375.00,Revenue,ASSOC OF ELECTORAL ADMINISTRATORS LTD,0
South Ribble Borough Council,http://statistics.data.gov.uk/id/local-authority/30UE,Capital,Capital Grant,C570,Disrepair Grant Assistance Fund Booklet 8-pages 277.00 plus VAT for 2000 leaflets as per quote supplied,26/01/2022,0000472706,277.00,Revenue,B & D PRINT SERVICES LTD,0
South Ribble Borough Council,http://statistics.data.gov.uk/id/local-authority/30UE,Capital,Cap Contract Payment,C230,Install of infrared heaters and associated switching and wiring cafe pod Worden as per NAME REDACTED request,05/01/2022,0000474591,525.60,Revenue,BELEC ELECTRICAL LTD,0
South Ribble Borough Council,http://statistics.data.gov.uk/id/local-authority/30UE,Recreation & Sport,Materials General,4040,"Various items of Sports Equipment for PASTA Programme Activity Packs, Price - 465.60, VAT - 116.40, Delivery - 7.80",27/01/2022,0000475289,673.50,Revenue,Bishop Sports & Leisure Ltd,0
South Ribble Borough Council,http://statistics.data.gov.uk/id/local-authority/30UE,Economic Development,Partnership,485I,Renew of subscription to Evolutive from 1st Jan to 31st December 2022,26/01/2022,0000474870,"1,632.00",Revenue,BLACKBURN WITH DARWEN BOROUGH COUNCIL,0
South Ribble Borough Council,http://statistics.data.gov.uk/id/local-authority/30UE,Community Development,External Catering Charges,4575,Food for the HAF project for December,12/01/2022,0000474792,"3,360.00",Revenue,Box Clever CIC,0
South Ribble Borough Council,http://statistics.data.gov.uk/id/local-authority/30UE,Surplus or Deficit on Trading,Planned Annual Repair & Maintenance,2021,"Annual contract 2021 / 2022 for care plan 2 at Carr Street Community Centre, Bamber Bridge",26/01/2022,0000475200,441.56,Revenue,BRITISH GAS SERVICES (COMMERCIAL) LTD,0
South Ribble Borough Council,http://statistics.data.gov.uk/id/local-authority/30UE,Regulatory Services,Operational Equip & Tools,4010,Annual licence for 2 user (3530+VAT) and training for 2 Delegates (960+VAT) per NAME REDACTED.,26/01/2022,0000474972,"4,490.00",Revenue,CAMBRIDGE ENVIRONMENTAL RESEARCHCONSULTANTS LTD,0
South Ribble Borough Council,http://statistics.data.gov.uk/id/local-authority/30UE,Central Support Services,Applications Systems,4248,"REDHAT 6 TO 7 AND INGRES 10.2 TO 11 MIGRATION FOR 6,000, LINUX",12/01/2022,0000474601,"6,000.00",Revenue,CAPITA BUSINESS SERVICES LTD,0
South Ribble Borough Council,http://statistics.data.gov.uk/id/local-authority/30UE,Central Support Services,Agency Staff,1121,Planning consultant to deal with Planning applications for the next 6 months,12/01/2022,0000474191,"6,927.96",Revenue,CAPITA PROPERTY AND INFRASTRUCTURE LTD,0
South Ribble Borough Council,http://statistics.data.gov.uk/id/local-authority/30UE,Recreation & Sport,Licences Fee General,488B,mgmt fee jan-mar22,19/01/2022,0000474747,"1,125.00",Revenue,Carr Street Community Centre,0
South Ribble Borough Council,http://statistics.data.gov.uk/id/local-authority/30UE,Central Support Services,Agency Staff,1121,"Provision of a temporary Auditor, commencing 29/11/2021",19/01/2022,0000474650,976.00,Revenue,Castlefield Recruitment Limited,0
South Ribble Borough Council,http://statistics.data.gov.uk/id/local-authority/30UE,Central Support Services,Agency Staff,1121,"Provision of a temporary Auditor, commencing 29/11/2021",19/01/2022,0000474651,960.00,Revenue,Castlefield Recruitment Limited,0
South Ribble Borough Council,http://statistics.data.gov.uk/id/local-authority/30UE,Central Support Services,Agency Staff,1121,"Provision of a temporary Auditor, commencing 29/11/2021",19/01/2022,0000474877,"1,024.00",Revenue,Castlefield Recruitment Limited,0
South Ribble Borough Council,http://statistics.data.gov.uk/id/local-authority/30UE,Other Welfare Services,Rental,4012,"Costs ADDRESS REDACTED, Kitchen equip, Furniture, Bedding, towels, curtains, Misc, Delivery",12/01/2022,0000474262,"1,890.00",Revenue,CENTRAL LANCASHIRE AGE CONCERN LTD,0
South Ribble Borough Council,http://statistics.data.gov.uk/id/local-authority/30UE,Other Welfare Services,Rental,4012,del,12/01/2022,0000474262,160.00,Revenue,CENTRAL LANCASHIRE AGE CONCERN LTD,0
South Ribble Borough Council,http://statistics.data.gov.uk/id/local-authority/30UE,Homelessness,Contributions to Other Bodies,4730,"Winter watch costs up to 13/12/21, 9 applicants placed , total number of night 19",12/01/2022,0000474532,323.00,Revenue,CHORLEY BOROUGH COUNCIL,0
South Ribble Borough Council,http://statistics.data.gov.uk/id/local-authority/30UE,Homelessness,Temporary Accommodation,5311,"SRBC placements, NAMES REDACTED From 05/10/2021  13/12/2021, From 10/11/2021  13/12/2021, From 09/09/2021  13/09/2021",12/01/2022,0000474533,"7,609.95",Revenue,CHORLEY BOROUGH COUNCIL,0
South Ribble Borough Council,http://statistics.data.gov.uk/id/local-authority/30UE,Corporate Management,Chorley Shared Services Costs Staffing,5500,Shared Services Recharges to SRBC for Quarters 1 & 2 21/22,05/01/2022,0000474576,"739,729.00",Revenue,CHORLEY BOROUGH COUNCIL,0
South Ribble Borough Council,http://statistics.data.gov.uk/id/local-authority/30UE,Central Support Services,Intruder Alarm,2035,For additional costs due to call outs exceeded original amount - to cover until March 2022,19/01/2022,0000474858,424.29,Revenue,CHUBB LTD,0
South Ribble Borough Council,http://statistics.data.gov.uk/id/local-authority/30UE,Economic Development,Miscellaneous Expenses,4851,"Tree for Leyland Christmas Lights 9,244.",05/01/2022,0000474603,"9,244.00",Revenue,City Illuiminations Ltd,0
South Ribble Borough Council,http://statistics.data.gov.uk/id/local-authority/30UE,Economic Development,Miscellaneous Expenses,4851,"Pole features (all), Roundabout, Weekly inspections (approx five weeks), Unlimited call outs during the show, Annual storage of all items",12/01/2022,0000474744,"9,675.00",Revenue,City Illuiminations Ltd,0
South Ribble Borough Council,http://statistics.data.gov.uk/id/local-authority/30UE,Central Support Services,Software Licensing,4243,"South Ribble 14,900 made up as follows: Annual Support & Maintenance, ADFS Set up 1370",27/01/2022,0000473418,"13,030.00",Revenue,CIVICA UK LTD,0
South Ribble Borough Council,http://statistics.data.gov.uk/id/local-authority/30UE,Central Support Services,Software Licensing,4243,Civicapay - Initial Licence Fee for Hosted Distribution - Payable on contract signature,27/01/2022,0000473462,"12,500.00",Revenue,CIVICA UK LTD,0
South Ribble Borough Council,http://statistics.data.gov.uk/id/local-authority/30UE,Central Support Services,Software Licensing,4243,CivicaPay - Annual Subscription - Year 1 (30/09/2021 - 29/09/2022) CivicaPay - Transactions upto 75k pa - Year 1 (30/09/2021 - 29/09/2022),27/01/2022,0000473463,"16,525.00",Revenue,CIVICA UK LTD,0
South Ribble Borough Council,http://statistics.data.gov.uk/id/local-authority/30UE,Central Support Services,Consultancy Fees,4541,Consultancy for the Barclays bank file error,26/01/2022,0000475047,"1,715.00",Revenue,CIVICA UK LTD,0
South Ribble Borough Council,http://statistics.data.gov.uk/id/local-authority/30UE,Homelessness,Temporary Accommodation,5311,NAME REDACTED 19-22/12/2021,19/01/2022,0000474922,135.00,Revenue,CLAREMONT HOTEL,0
South Ribble Borough Council,http://statistics.data.gov.uk/id/local-authority/30UE,Homelessness,Contributions to Other Bodies,4730,NAME REDACTED 22/12/2021-04/01/2022,19/01/2022,0000474922,585.00,Revenue,CLAREMONT HOTEL,0
South Ribble Borough Council,http://statistics.data.gov.uk/id/local-authority/30UE,Homelessness,Temporary Accommodation,5311,NAME REDACTED 20/12/2021-04/01/2022 + 04/01/2022-11/01/2022,19/01/2022,0000474922,945.00,Revenue,CLAREMONT HOTEL,0
South Ribble Borough Council,http://statistics.data.gov.uk/id/local-authority/30UE,Homelessness,Temporary Accommodation,5311,NAME REDACTED 23/12/2021-04/01/2022. 04/01/2022-11/01/2022.,19/01/2022,0000474922,894.00,Revenue,CLAREMONT HOTEL,0
South Ribble Borough Council,http://statistics.data.gov.uk/id/local-authority/30UE,Homelessness,Contributions to Other Bodies,4730,NAME REDACTED 23/12/2021-05/01/2022.,19/01/2022,0000474922,585.00,Revenue,CLAREMONT HOTEL,0
South Ribble Borough Council,http://statistics.data.gov.uk/id/local-authority/30UE,Homelessness,Contributions to Other Bodies,4730,NAME REDACTED 23/12/2021-05/01/2022.,19/01/2022,0000474922,585.00,Revenue,CLAREMONT HOTEL,0
South Ribble Borough Council,http://statistics.data.gov.uk/id/local-authority/30UE,Homelessness,Contributions to Other Bodies,4730,NAME REDACTED 04/01/2022-24/01/2022.,26/01/2022,0000475228,900.00,Revenue,CLAREMONT HOTEL,0
South Ribble Borough Council,http://statistics.data.gov.uk/id/local-authority/30UE,Homelessness,Temporary Accommodation,5311,NAME REDACTED 04/01/2022 - 24/01/2022.,26/01/2022,0000475228,900.00,Revenue,CLAREMONT HOTEL,0
South Ribble Borough Council,http://statistics.data.gov.uk/id/local-authority/30UE,Homelessness,Temporary Accommodation,5311,NAME REDACTED 11/01/2022 - 16/01/2022.,26/01/2022,0000475228,225.00,Revenue,CLAREMONT HOTEL,0
South Ribble Borough Council,http://statistics.data.gov.uk/id/local-authority/30UE,Homelessness,Contributions to Other Bodies,4730,NAME REDACTED 11/01/2022 - 17/01/2022.,26/01/2022,0000475228,270.00,Revenue,CLAREMONT HOTEL,0
South Ribble Borough Council,http://statistics.data.gov.uk/id/local-authority/30UE,Capital,Cap Contract Payment,C230,Description- additional work at Lostock st gerards as requested by NAME REDACTED,12/01/2022,0000473867,"2,628.57",Revenue,Cleveland Land Services (Guisborough) Limited,0
South Ribble Borough Council,http://statistics.data.gov.uk/id/local-authority/30UE,Capital,Cap Contract Payment,C230,"For the provision of works to the pavilion, car park extension and associated works at Bamber Bridge sports hub",05/01/2022,0000473973,"78,614.62",Revenue,Code Building Solutions Limited,0
South Ribble Borough Council,http://statistics.data.gov.uk/id/local-authority/30UE,Capital,Cap Contract Payment,C230,"For the provision of works to the pavilion, car park extension and associated works at Bamber Bridge sports hub",26/01/2022,0000474941,"74,361.77",Revenue,Code Building Solutions Limited,0
South Ribble Borough Council,http://statistics.data.gov.uk/id/local-authority/30UE,Community Development,Professional Fees,4510,Activities for the HAF project over December,26/01/2022,0000475109,"1,750.00",Revenue,Community Network and Outreach,0
South Ribble Borough Council,http://statistics.data.gov.uk/id/local-authority/30UE,Central Support Services,Repair Costs General,4050,LOCK KITS,12/01/2022,0000473708,320.00,Revenue,CONTAINER CARE SOLUTIONS,0
South Ribble Borough Council,http://statistics.data.gov.uk/id/local-authority/30UE,Recreation & Sport,Gas,2304,OCT-NOV,05/01/2022,0000473702,"3,361.12",Revenue,Corona Energy Retail 4 Limited,0
South Ribble Borough Council,http://statistics.data.gov.uk/id/local-authority/30UE,Recreation & Sport,Gas,2304,nov-dec21,12/01/2022,0000474605,673.11,Revenue,Corona Energy Retail 4 Limited,0
South Ribble Borough Council,http://statistics.data.gov.uk/id/local-authority/30UE,Recreation & Sport,Gas,2304,nov-dec21,26/01/2022,0000474733,650.38,Revenue,Corona Energy Retail 4 Limited,0
South Ribble Borough Council,http://statistics.data.gov.uk/id/local-authority/30UE,Recreation & Sport,Gas,2304,oct-nov21,19/01/2022,0000474734,"5,038.64",Revenue,Corona Energy Retail 4 Limited,0
South Ribble Borough Council,http://statistics.data.gov.uk/id/local-authority/30UE,Recreation & Sport,Gas,2304,oct-nov21,19/01/2022,0000474736,299.83,Revenue,Corona Energy Retail 4 Limited,0
South Ribble Borough Council,http://statistics.data.gov.uk/id/local-authority/30UE,Recreation & Sport,Gas,2304,nov-dec21,19/01/2022,0000474766,"4,064.49",Revenue,Corona Energy Retail 4 Limited,0
South Ribble Borough Council,http://statistics.data.gov.uk/id/local-authority/30UE,Recreation & Sport,Gas,2304,nov-dec21,19/01/2022,0000474767,"3,098.74",Revenue,Corona Energy Retail 4 Limited,0
South Ribble Borough Council,http://statistics.data.gov.uk/id/local-authority/30UE,Recreation & Sport,Gas,2304,nov-dec21,19/01/2022,0000474768,"4,335.48",Revenue,Corona Energy Retail 4 Limited,0
South Ribble Borough Council,http://statistics.data.gov.uk/id/local-authority/30UE,Recreation & Sport,Gas,2304,Apr-May21,19/01/2022,0000474861,795.83,Revenue,Corona Energy Retail 4 Limited,0
South Ribble Borough Council,http://statistics.data.gov.uk/id/local-authority/30UE,Recreation & Sport,Gas,2304,sept-oct21,19/01/2022,0000474882,"1,724.89",Revenue,Corona Energy Retail 4 Limited,0
South Ribble Borough Council,http://statistics.data.gov.uk/id/local-authority/30UE,Recreation & Sport,Gas,2304,Aug-Sept21,26/01/2022,0000474883,"1,777.87",Revenue,Corona Energy Retail 4 Limited,0
South Ribble Borough Council,http://statistics.data.gov.uk/id/local-authority/30UE,Recreation & Sport,Gas,2304,jul - aug21,26/01/2022,0000474895,"1,604.39",Revenue,Corona Energy Retail 4 Limited,0
South Ribble Borough Council,http://statistics.data.gov.uk/id/local-authority/30UE,Recreation & Sport,Gas,2304,jun - july21,26/01/2022,0000474896,"1,786.99",Revenue,Corona Energy Retail 4 Limited,0
South Ribble Borough Council,http://statistics.data.gov.uk/id/local-authority/30UE,Recreation & Sport,Gas,2304,may-jun21,26/01/2022,0000474897,"4,765.41",Revenue,Corona Energy Retail 4 Limited,0
South Ribble Borough Council,http://statistics.data.gov.uk/id/local-authority/30UE,Recycling,Publicity & Promotion,4842,"Garden Waste Mailing, Volume 1460 printed Mono, Set up and production 34.02, Primepost Postage 506.91",05/01/2022,0000474276,508.12,Revenue,CRITIQOM,0
South Ribble Borough Council,http://statistics.data.gov.uk/id/local-authority/30UE,Recycling,Publicity & Promotion,4842,"Garden Waste Mailing, Volume 1460 printed Mono, Set up and production 34.02, Primepost Postage 506.91",05/01/2022,0000474534,372.34,Revenue,CRITIQOM,0
South Ribble Borough Council,http://statistics.data.gov.uk/id/local-authority/30UE,Capital,Cap Contract Payment,C230,300 set up charge + insertion costs previously underquoted (154.13),19/01/2022,0000474848,454.13,Revenue,CRITIQOM,0
South Ribble Borough Council,http://statistics.data.gov.uk/id/local-authority/30UE,Local Tax Collection,Postage General,4291,Postage November to March 2022,26/01/2022,0000475118,251.20,Revenue,CRITIQOM,0
South Ribble Borough Council,http://statistics.data.gov.uk/id/local-authority/30UE,Capital,Capital Grant,C570,SUPPLY AND INSTALL DOOR OPENING SYSTEM AT ADDRESS REDACTED AS PER QUOTE SUPPLIED OF 3496.60,26/01/2022,0000475258,"3,390.50",Revenue,D G SERVICING LTD T/A AUTOMATED DOORSYSTEMS,0
South Ribble Borough Council,http://statistics.data.gov.uk/id/local-authority/30UE,Homelessness,Contributions to Other Bodies,4730,NAME REDACTED 14/01/2022  11/02/2022,26/01/2022,0000475125,340.00,Revenue,David Iddon & Corrina Kellett,0
South Ribble Borough Council,http://statistics.data.gov.uk/id/local-authority/30UE,Central Support Services,Materials General,4040,"Torsion bar bushes, front anti roll bar bushes, fuel filler cap, cab mount bushes, spring eye bushes, shackle bushes, VU11HSZ, JFC17636",27/01/2022,0000473976,917.12,Revenue,DENNIS EAGLE LTD,0
South Ribble Borough Council,http://statistics.data.gov.uk/id/local-authority/30UE,Central Support Services,Materials General,4040,"1x Hooper Floor, VO65 KPZ, JFC17457 (NAME REDACTED)",26/01/2022,0000474920,"1,521.91",Revenue,DENNIS EAGLE LTD,0
South Ribble Borough Council,http://statistics.data.gov.uk/id/local-authority/30UE,Central Support Services,Materials General,4040,"Wear Plate, V065 KPZ, JFC 17457",26/01/2022,0000474973,"3,076.71",Revenue,DENNIS EAGLE LTD,0
South Ribble Borough Council,http://statistics.data.gov.uk/id/local-authority/30UE,Capital,Cap Contract Payment,C230,Install of wind deflecting barriers for caf� pod worden as per NAME REDACTED request,05/01/2022,0000474598,"2,000.00",Revenue,DP STRUCTURES LTD,0
South Ribble Borough Council,http://statistics.data.gov.uk/id/local-authority/30UE,Capital,Cap Contract Payment,C230,"Rental of Temp Cafe unit for 'Folly caf�' Worden park. Unit will be supplied, installed, removed from site upon termination of the agreement.",12/01/2022,0000474599,"2,060.00",Revenue,DP STRUCTURES LTD,0
South Ribble Borough Council,http://statistics.data.gov.uk/id/local-authority/30UE,Central Support Services,Maintenance & Repair,4013,Fujitsu fi-5750C Maintenance (31st Jan 2022 - 30th Jan 2023)  731.50  Fujitsu fi-6770 Maintenance (31st Jan 2022 - 30th Jan 2023)  632.50,19/01/2022,0000474233,"1,364.00",Revenue,E FILE UK LTD,0
South Ribble Borough Council,http://statistics.data.gov.uk/id/local-authority/30UE,Capital,Cap Contract Payment,C230,"Hardware & Install - Kings Cres Car Park  1, William St Car Park 1, Bamber Bridge 1, Community Centre 1, per NAME REDACTED",26/01/2022,0000475120,"82,505.00",Revenue,EB Charging Ltd,0
South Ribble Borough Council,http://statistics.data.gov.uk/id/local-authority/30UE,Central Support Services,Software Licensing,4243,"Applying the appropriate level of security to email messages, attachments and large files in order to keep sensitive data safe",19/01/2022,0000474586,"2,893.78",Revenue,Egress Software Technologies Limited,0
South Ribble Borough Council,http://statistics.data.gov.uk/id/local-authority/30UE,Open Spaces,GM Refurbishment,4657,4 no printed South Ribble Borough Council Flags at 195 each,12/01/2022,0000474774,790.00,Revenue,ENSIGN FLAGS CO LTD,0
South Ribble Borough Council,http://statistics.data.gov.uk/id/local-authority/30UE,Recreation & Sport,Reactive Repair & Maintenance,2020,1 x 107540000XXXLA Lowara DOC31A pump,19/01/2022,0000474196,345.00,Revenue,ESSENTIAL INDUSTRIAL SERVICES LTD,0
South Ribble Borough Council,http://statistics.data.gov.uk/id/local-authority/30UE,Economic Development,Miscellaneous Expenses,4851,"Leyland Ligths Switch On - Grotto, Santa - 150, Elf - 90, Elf - 90, Total - 330",05/01/2022,0000474618,330.00,Revenue,EVENTS LIVE,0
South Ribble Borough Council,http://statistics.data.gov.uk/id/local-authority/30UE,Recreation & Sport,Publicity & Promotion,4842,Filming for DFTH Training. 300+VAT,27/01/2022,0000475294,300.00,Revenue,Everyonemedia Ltd,0
South Ribble Borough Council,http://statistics.data.gov.uk/id/local-authority/30UE,Homelessness,Contributions to Other Bodies,4730,"provision of staffed ringfenced bed x 12 weeks, agreed cost REDACTED",26/01/2022,0000475244,"1,680.00",Revenue,Excel Housing Solutions,0
South Ribble Borough Council,http://statistics.data.gov.uk/id/local-authority/30UE,Homelessness,Contributions to Other Bodies,4730,provision of floating support 1.8.2021 - 31.10.2021,26/01/2022,0000475245,"7,423.75",Revenue,Excel Housing Solutions,0
South Ribble Borough Council,http://statistics.data.gov.uk/id/local-authority/30UE,Homelessness,Contributions to Other Bodies,4730,provision of floating support 1.11.2021 - 31.1.2022,26/01/2022,0000475245,"7,423.75",Revenue,Excel Housing Solutions,0
South Ribble Borough Council,http://statistics.data.gov.uk/id/local-authority/30UE,Homelessness,Contributions to Other Bodies,4730,Provision of floating support 1.2.2022 - 31.3.2022,26/01/2022,0000475245,"4,949.16",Revenue,Excel Housing Solutions,0
South Ribble Borough Council,http://statistics.data.gov.uk/id/local-authority/30UE,Central Support Services,Materials General,4040,15x rollers for bin 1268,12/01/2022,0000474537,"2,063.44",Revenue,F R SHARROCK LTD,0
South Ribble Borough Council,http://statistics.data.gov.uk/id/local-authority/30UE,Central Support Services,Materials General,4040,"1 x air filter outer, 1 x air filter inner, 1 x filter cartridge, 1 x element micron abso, 1 x element filter, 1 x filter mat for air con",12/01/2022,0000474574,280.26,Revenue,F R SHARROCK LTD,0
South Ribble Borough Council,http://statistics.data.gov.uk/id/local-authority/30UE,Central Support Services,Materials General,4040,4 x female rod ends- BIN1108,12/01/2022,0000474582,169.86,Revenue,F R SHARROCK LTD,0
South Ribble Borough Council,http://statistics.data.gov.uk/id/local-authority/30UE,Central Support Services,Materials General,4040,6 x male rod ends- BIN1107,12/01/2022,0000474582,269.78,Revenue,F R SHARROCK LTD,0
South Ribble Borough Council,http://statistics.data.gov.uk/id/local-authority/30UE,Central Support Services,Materials General,4040,30 x adaptor bushes- BIN1048,12/01/2022,0000474585,334.80,Revenue,F R SHARROCK LTD,0
South Ribble Borough Council,http://statistics.data.gov.uk/id/local-authority/30UE,Waste Collection,External Contractors Charges,4570,Residual Waste Collections- December 2021,26/01/2022,0000474781,"47,367.71",Revenue,FCC Environment Services (UK) Ltd,0
South Ribble Borough Council,http://statistics.data.gov.uk/id/local-authority/30UE,Recycling,External Contractors Charges,4570,Dry Recyclable Non Terrace- December 2021,26/01/2022,0000474781,"48,490.57",Revenue,FCC Environment Services (UK) Ltd,0
South Ribble Borough Council,http://statistics.data.gov.uk/id/local-authority/30UE,Recycling,External Contractors Charges,4570,Dry Recyclable terraced- December 2021,26/01/2022,0000474781,"2,308.24",Revenue,FCC Environment Services (UK) Ltd,0
South Ribble Borough Council,http://statistics.data.gov.uk/id/local-authority/30UE,Recycling,External Contractors Charges,4570,Organic Waste - non terraced- October 2021,26/01/2022,0000474781,"33,573.08",Revenue,FCC Environment Services (UK) Ltd,0
South Ribble Borough Council,http://statistics.data.gov.uk/id/local-authority/30UE,Trade Waste,External Contractors Charges,4570,Schedule 2 Properties -December 2021,26/01/2022,0000474781,"1,931.17",Revenue,FCC Environment Services (UK) Ltd,0
South Ribble Borough Council,http://statistics.data.gov.uk/id/local-authority/30UE,Trade Waste,External Contractors Charges,4570,Commercial Waste Collections- December 2021,26/01/2022,0000474781,"7,517.16",Revenue,FCC Environment Services (UK) Ltd,0
South Ribble Borough Council,http://statistics.data.gov.uk/id/local-authority/30UE,Waste Collection,External Contractors Charges,4570,Bulky Waste Collections -December 2021,26/01/2022,0000474781,"1,043.40",Revenue,FCC Environment Services (UK) Ltd,0
South Ribble Borough Council,http://statistics.data.gov.uk/id/local-authority/30UE,Waste Collection,External Contractors Charges,4570,WEEE Collections - December 2021,26/01/2022,0000474781,392.02,Revenue,FCC Environment Services (UK) Ltd,0
South Ribble Borough Council,http://statistics.data.gov.uk/id/local-authority/30UE,Waste Collection,External Contractors Charges,4570,Clinical Waste Collections- December 2021,26/01/2022,0000474781,667.86,Revenue,FCC Environment Services (UK) Ltd,0
South Ribble Borough Council,http://statistics.data.gov.uk/id/local-authority/30UE,Waste Collection,External Contractors Charges,4570,Replacement Bins-December 2021,26/01/2022,0000474781,"5,000.00",Revenue,FCC Environment Services (UK) Ltd,0
South Ribble Borough Council,http://statistics.data.gov.uk/id/local-authority/30UE,Waste Collection,External Contractors Charges,4570,Additional Properties - December 2021,26/01/2022,0000474781,"5,408.15",Revenue,FCC Environment Services (UK) Ltd,0
South Ribble Borough Council,http://statistics.data.gov.uk/id/local-authority/30UE,Short Term Creditors,Amount Paid,0030,refuse retention,26/01/2022,0000474781,"-3,216.37",Revenue,FCC Environment Services (UK) Ltd,0
South Ribble Borough Council,http://statistics.data.gov.uk/id/local-authority/30UE,Short Term Creditors,Amount Paid,0030,recycling ret,26/01/2022,0000474781,"-4,218.59",Revenue,FCC Environment Services (UK) Ltd,0
South Ribble Borough Council,http://statistics.data.gov.uk/id/local-authority/30UE,Waste Collection,External Contractors Charges,4570,Loaders Living Wage Pay Rise December 2021,26/01/2022,0000474992,"2,714.43",Revenue,FCC Environment Services (UK) Ltd,0
South Ribble Borough Council,http://statistics.data.gov.uk/id/local-authority/30UE,Waste Collection,External Contractors Charges,4570,"Driver Bonus, October, November and December 2021",26/01/2022,0000475015,"6,400.00",Revenue,FCC Environment Services (UK) Ltd,0
South Ribble Borough Council,http://statistics.data.gov.uk/id/local-authority/30UE,Waste Collection,External Contractors Charges,4570,Additional Waste Collections- December 2021,26/01/2022,0000475016,500.03,Revenue,FCC Environment Services (UK) Ltd,0
South Ribble Borough Council,http://statistics.data.gov.uk/id/local-authority/30UE,Short Term Creditors,Amount Paid,0030,retention,26/01/2022,0000475016,-26.32,Revenue,FCC Environment Services (UK) Ltd,0
South Ribble Borough Council,http://statistics.data.gov.uk/id/local-authority/30UE,Waste Collection,External Contractors Charges,4570,Additional Bulky Waste Collections- December 2021,26/01/2022,0000475017,378.00,Revenue,FCC Environment Services (UK) Ltd,0
South Ribble Borough Council,http://statistics.data.gov.uk/id/local-authority/30UE,Waste Collection,External Contractors Charges,4570,Additional WEEE Collections- December 2021,26/01/2022,0000475017,337.44,Revenue,FCC Environment Services (UK) Ltd,0
South Ribble Borough Council,http://statistics.data.gov.uk/id/local-authority/30UE,Short Term Creditors,Amount Paid,0030,retention,26/01/2022,0000475017,-35.77,Revenue,FCC Environment Services (UK) Ltd,0
South Ribble Borough Council,http://statistics.data.gov.uk/id/local-authority/30UE,Waste Collection,External Contractors Charges,4570,Loaders living wage pay rise November 2021,26/01/2022,0000475024,"2,714.43",Revenue,FCC Environment Services (UK) Ltd,0
South Ribble Borough Council,http://statistics.data.gov.uk/id/local-authority/30UE,Waste Collection,External Contractors Charges,4570,"Agency Driver Bonus- October , November and December 2021",26/01/2022,0000475195,"1,850.00",Revenue,FCC Environment Services (UK) Ltd,0
South Ribble Borough Council,http://statistics.data.gov.uk/id/local-authority/30UE,Recreation & Sport,Planned Annual Repair & Maintenance,2021,"Service contract for Leyland Leisure Centre, 2x visits to the filtration system, 1x to the balance tank cleaning, 2x for the chemical dosing systems",26/01/2022,0000474793,300.00,Revenue,FT Leisure Ltd,0
South Ribble Borough Council,http://statistics.data.gov.uk/id/local-authority/30UE,Recreation & Sport,Materials General,4040,"20 x Size 4 Nike Team Pitch Football @ 6.25 each, 20 x Size 3 Nike Team Pitch Football @ 6.25 each",12/01/2022,0000474783,250.00,Revenue,Galaxy,0
South Ribble Borough Council,http://statistics.data.gov.uk/id/local-authority/30UE,Development Control,Operational Equip & Tools,4010,"Renewal of service agreement for: HPT3500, 16/01/2021. Un-limited breakdown calls (all calls to be placed by your Company), All travel",26/01/2022,0000474966,995.00,Revenue,GCS UK ASSOCIATES LTD,0
South Ribble Borough Council,http://statistics.data.gov.uk/id/local-authority/30UE,Central Support Services,Materials General,4040,Shaft Adaptor + Carriage YD19 AUN JFC17777,19/01/2022,0000474886,375.77,Revenue,GEESINK NORBA LTD,0
South Ribble Borough Council,http://statistics.data.gov.uk/id/local-authority/30UE,Central Support Services,Legal,4821,PROFESSIONAL SERVICES WITH REGARD TO WAINHOMES V SOS & SRBC - CHAIN HOUSE LANE (S288 CHALLENGE),19/01/2022,0000474940,"1,050.00",Revenue,Giles Cannock,0
South Ribble Borough Council,http://statistics.data.gov.uk/id/local-authority/30UE,Capital,Capital Grant,C570,DFG WORK FOR ADAPTATION FOR LEVEL ACCESS SHOWER AT ADDRESS REDACTED AS PER SRBC PLANS AND QUOTE SUPPLIED,19/01/2022,0000474977,"4,418.92",Revenue,GOS Heating Ltd,0
South Ribble Borough Council,http://statistics.data.gov.uk/id/local-authority/30UE,Regulatory Services,Operational Equip & Tools,4010,New boiler installation at ADDRESS REDACTED as per quotation - NAME REDACTED.,26/01/2022,0000475121,"1,719.24",Revenue,GOS Heating Ltd,0
South Ribble Borough Council,http://statistics.data.gov.uk/id/local-authority/30UE,Capital,Cap Contract Payment,C230,Please provide services to Worden Hall PM and QS support RIBA stage 4-7 - agreed with SRBC Regeneration Dept.,26/01/2022,0000474995,"3,850.00",Revenue,Gosling Consulting Limited,0
South Ribble Borough Council,http://statistics.data.gov.uk/id/local-authority/30UE,Capital,Cap Contract Payment,C230,"McKenzie Arms Site, PR5 6EE, Procurement, Project Management and Quantity Surveying Services: Review of Business Case and Cost Plan",26/01/2022,0000474996,"2,887.50",Revenue,Gosling Consulting Limited,0
South Ribble Borough Council,http://statistics.data.gov.uk/id/local-authority/30UE,Capital,Cap Contract Payment,C230,Provision of Quantity Surveyor Services and Procurement Support Services to RIBA Stage 3/Leyland Town Deal Project as per NAME REDACTED,26/01/2022,0000475019,"4,977.00",Revenue,Gosling Consulting Limited,0
South Ribble Borough Council,http://statistics.data.gov.uk/id/local-authority/30UE,Capital,Cap Contract Payment,C230,IRS procurement support - Leyland Town Deal,26/01/2022,0000475020,"1,657.50",Revenue,Gosling Consulting Limited,0
South Ribble Borough Council,http://statistics.data.gov.uk/id/local-authority/30UE,Capital,Cap Contract Payment,C230,Leyland Town Deal - Document Management Services,26/01/2022,0000475036,525.00,Revenue,Gosling Consulting Limited,0
South Ribble Borough Council,http://statistics.data.gov.uk/id/local-authority/30UE,Capital,Cap Contract Payment,C230,Please provide services to Worden Hall PM and QS support RIBA stage 4-7 - agreed with SRBC Regeneration Dept.,26/01/2022,0000475112,"3,850.00",Revenue,Gosling Consulting Limited,0
South Ribble Borough Council,http://statistics.data.gov.uk/id/local-authority/30UE,Corporate Management,External Audit Fees,4512,2021-22 Audit,19/01/2022,0000473233,"8,455.25",Revenue,Grant Thornton UK LLP,0
South Ribble Borough Council,http://statistics.data.gov.uk/id/local-authority/30UE,Corporate Management,External Audit Fees,4512,2021-22 Audit,19/01/2022,0000474044,"8,455.25",Revenue,Grant Thornton UK LLP,0
South Ribble Borough Council,http://statistics.data.gov.uk/id/local-authority/30UE,Other Welfare Services,Rental,4012,"Agreed rent, ADDRESS REDACTED",26/01/2022,0000475025,771.43,Revenue,GREAT PLACES HOUSING ASSOCIATION,0
South Ribble Borough Council,http://statistics.data.gov.uk/id/local-authority/30UE,Other Welfare Services,Rental,4012,"Agreed rent, ADDRESS REDACTED",26/01/2022,0000475025,994.28,Revenue,GREAT PLACES HOUSING ASSOCIATION,0
South Ribble Borough Council,http://statistics.data.gov.uk/id/local-authority/30UE,Community Development,External Catering Charges,4575,Food for the HAF program for December. 4 per person x300 x 4 plus an extra delivery cost of 50.,12/01/2022,0000474794,"4,850.00",Revenue,Halls Bakery Limited,0
South Ribble Borough Council,http://statistics.data.gov.uk/id/local-authority/30UE,Central Support Services,Publications General,4140,Planning Resource Subscription,26/01/2022,0000474795,"1,500.00",Revenue,HAYMARKET MEDIA GROUP LTD,0
South Ribble Borough Council,http://statistics.data.gov.uk/id/local-authority/30UE,Central Support Services,Miscellaneous Expenses,4851,Senior Paralegal - 2 positions vacancy,19/01/2022,0000474761,495.00,Revenue,HB EDITORIAL SERVICES LTD,0
South Ribble Borough Council,http://statistics.data.gov.uk/id/local-authority/30UE,Capital,Cap Contract Payment,C230,Penwortham Masterplan Project,19/01/2022,0000474930,"16,066.00",Revenue,Hem Des LLP,0
South Ribble Borough Council,http://statistics.data.gov.uk/id/local-authority/30UE,Recreation & Sport,Licences Fee General,488B,fee qtr4 jan-mar 22,19/01/2022,0000474748,"1,000.00",Revenue,HIGHER WALTON COMMUNITY CENTRE,0
South Ribble Borough Council,http://statistics.data.gov.uk/id/local-authority/30UE,Short Term Creditors,Amount Received,0140,,12/01/2022,0000473955,"1,559.70",Revenue,HM REVENUE & CUSTOMS,0
South Ribble Borough Council,http://statistics.data.gov.uk/id/local-authority/30UE,Short Term Creditors,Amount Received,0140,,12/01/2022,0000474592,460.19,Revenue,HM REVENUE & CUSTOMS,0
South Ribble Borough Council,http://statistics.data.gov.uk/id/local-authority/30UE,Democratic Represent and  Mgnt,Room Hire and Events,4630,"HIRE OF MUCH HOOLE VILLAGE HALL, FRIDAY 5 NOVEMBER 2021, CABINET AND PARISH/TOWN COUNCIL LIAISON MEETING, 1 PM",12/01/2022,0000473738,300.00,Revenue,HOOLE VILLAGE MEMORIAL HALL COMMITTEE,0
South Ribble Borough Council,http://statistics.data.gov.uk/id/local-authority/30UE,Central Support Services,External Contractors Charges,4570,Block Hours Support,12/01/2022,0000472944,"5,500.00",Revenue,Hybrit Services Limited,0
South Ribble Borough Council,http://statistics.data.gov.uk/id/local-authority/30UE,Central Support Services,External Contractors Charges,4570,Senior Service Desk Analyst,12/01/2022,0000472991,"3,000.00",Revenue,Hybrit Services Limited,0
South Ribble Borough Council,http://statistics.data.gov.uk/id/local-authority/30UE,Central Support Services,Technical Support,4246,Senior Service Desk Analyst,12/01/2022,0000472992,"3,600.00",Revenue,Hybrit Services Limited,0
South Ribble Borough Council,http://statistics.data.gov.uk/id/local-authority/30UE,Central Support Services,External Contractors Charges,4570,"STD, Saturday, Sunday, South Ribble Exchange Migration additional time",12/01/2022,0000472994,"3,500.00",Revenue,Hybrit Services Limited,0
South Ribble Borough Council,http://statistics.data.gov.uk/id/local-authority/30UE,Central Support Services,External Contractors Charges,4570,"10 days consultancy, Quote HS20211012-0405",12/01/2022,0000473011,"3,000.00",Revenue,Hybrit Services Limited,0
South Ribble Borough Council,http://statistics.data.gov.uk/id/local-authority/30UE,Local Tax Collection,Professional Fees,4510,"EXPAC DISTRIBUTION CENTRE, TOMLINSON ROAD",26/01/2022,0000475092,"1,100.00",Revenue,Inform CPI Ltd,0
South Ribble Borough Council,http://statistics.data.gov.uk/id/local-authority/30UE,Local Tax Collection,Professional Fees,4510,CLEGGS FARM COTTAGE AND STABLES AT SUNNYDENE,26/01/2022,0000475111,540.00,Revenue,Inform CPI Ltd,0
South Ribble Borough Council,http://statistics.data.gov.uk/id/local-authority/30UE,Central Support Services,Basic Pay,1100,Recruitment Services: Locum Lawyer - NAME REDACTED,19/01/2022,0000473924,"2,052.00",Revenue,James Andrews Recruitment Solutions Ltd,0
South Ribble Borough Council,http://statistics.data.gov.uk/id/local-authority/30UE,Central Support Services,Basic Pay,1100,Recruitment Services: Locum Lawyer - NAME REDACTED,19/01/2022,0000474231,"1,710.00",Revenue,James Andrews Recruitment Solutions Ltd,0
South Ribble Borough Council,http://statistics.data.gov.uk/id/local-authority/30UE,Central Support Services,Basic Pay,1100,Recruitment Services: Locum Lawyer - NAME REDACTED,19/01/2022,0000474814,"1,710.00",Revenue,James Andrews Recruitment Solutions Ltd,0
South Ribble Borough Council,http://statistics.data.gov.uk/id/local-authority/30UE,Central Support Services,Basic Pay,1100,Recruitment Services: Locum Lawyer - NAME REDACTED,26/01/2022,0000475110,969.00,Revenue,James Andrews Recruitment Solutions Ltd,0
South Ribble Borough Council,http://statistics.data.gov.uk/id/local-authority/30UE,Surplus or Deficit on Trading,Reactive Repair & Maintenance,2020,"Annual Contract for 2021 - 2022 for the maintenance of the Trend BMS HVAC, 4 x day visits June, Sept, Dec, March - at the Civic Centre Offices",12/01/2022,0000474660,424.00,Revenue,JBC CONTROL SYSTEM,0
South Ribble Borough Council,http://statistics.data.gov.uk/id/local-authority/30UE,Capital,Cap Contract Payment,C230,Costs for work on the refurbishment of Worden Hall Central Buildings,26/01/2022,0000474655,"82,835.85",Revenue,John Turner Construction Group Ltd,0
South Ribble Borough Council,http://statistics.data.gov.uk/id/local-authority/30UE,Capital,Cap Contract Payment,C230,"Tennis Centre Car Park As per NAME REDACTED As per valuation sent on 8th December 2021. Original tender, detailed costs on valuation sent",05/01/2022,0000474235,"86,423.28",Revenue,John Wade Groundworks Ltd t/a Wade Group,0
South Ribble Borough Council,http://statistics.data.gov.uk/id/local-authority/30UE,Capital,Cap Contract Payment,C230,Planning notices in the Lancashire Evening Post and Preston Today,19/01/2022,0000473730,"1,134.00",Revenue,JPI Media - JOHNSTON PUBLISHING (NORTH WEST),0
South Ribble Borough Council,http://statistics.data.gov.uk/id/local-authority/30UE,Development Control,Advertising,4841,Purchase order - for public notices for planning applications appearing in the LEP,19/01/2022,0000473933,810.00,Revenue,JPI Media - JOHNSTON PUBLISHING (NORTH WEST),0
South Ribble Borough Council,http://statistics.data.gov.uk/id/local-authority/30UE,Development Control,Advertising,4841,Purchase order - for public notices for planning applications appearing in the LEP,19/01/2022,0000474540,972.00,Revenue,JPI Media - JOHNSTON PUBLISHING (NORTH WEST),0
South Ribble Borough Council,http://statistics.data.gov.uk/id/local-authority/30UE,Development Control,Advertising,4841,Purchase order - for public notices for planning applications appearing in the LEP,19/01/2022,0000474541,"1,539.00",Revenue,JPI Media - JOHNSTON PUBLISHING (NORTH WEST),0
South Ribble Borough Council,http://statistics.data.gov.uk/id/local-authority/30UE,Economic Development,Public Relations Strategy,4848,3 x Adverts in LEP in December,19/01/2022,0000474542,"1,098.50",Revenue,JPI Media - JOHNSTON PUBLISHING (NORTH WEST),0
South Ribble Borough Council,http://statistics.data.gov.uk/id/local-authority/30UE,Homelessness,Contributions to Other Bodies,4730,Drop in payment Jan - March 2022.,26/01/2022,0000475243,"7,500.00",Revenue,KEY UNLOCKING FUTURES LTD,0
South Ribble Borough Council,http://statistics.data.gov.uk/id/local-authority/30UE,Regulatory Services,Poisons & Baits,4041,6 x Chameleon 1X2 White CHA1x2014 @ 99.00,26/01/2022,0000474159,492.42,Revenue,KILLGERM CHEMICALS LTD,0
South Ribble Borough Council,http://statistics.data.gov.uk/id/local-authority/30UE,Surplus or Deficit on Trading,Rents,2401,Rental fees for forward industrial estate from September 2021 to March 2022,12/01/2022,0000474543,"16,147.50",Revenue,L2 Property Limited,0
South Ribble Borough Council,http://statistics.data.gov.uk/id/local-authority/30UE,Surplus or Deficit on Trading,Rents,2401,less ground rent,12/01/2022,0000474543,"-2,850.00",Revenue,L2 Property Limited,0
South Ribble Borough Council,http://statistics.data.gov.uk/id/local-authority/30UE,Local Land Charges,L C C General,4530,LAND CHARGES - DECEMBER 2021,26/01/2022,0000475089,341.00,Revenue,LANCS COUNTY COUNCIL,0
South Ribble Borough Council,http://statistics.data.gov.uk/id/local-authority/30UE,Central Support Services,Materials General,4040,"1 caliper, 1 brake disc, 1 hub nut, 1 wheel rim YA19 NJZ JFC17373",19/01/2022,0000472328,658.51,Revenue,LANCS DAF,0
South Ribble Borough Council,http://statistics.data.gov.uk/id/local-authority/30UE,Central Support Services,Materials General,4040,"1 caliper, 1 brake disc, 1 hub nut, 1 wheel rim YA19 NJZ JFC17373",19/01/2022,0000472369,275.40,Revenue,LANCS DAF,0
South Ribble Borough Council,http://statistics.data.gov.uk/id/local-authority/30UE,Central Support Services,Materials General,4040,Break Calliper YD19 AUM JFC 17547,12/01/2022,0000474182,275.40,Revenue,LANCS DAF,0
South Ribble Borough Council,http://statistics.data.gov.uk/id/local-authority/30UE,Central Support Services,Materials General,4040,"1 x full service kit plus oil, 1 x headlight, 1 x passenger outer seatbelt, 1 x nearside wide angle mirror YD19AUN JFC17724",05/01/2022,0000474559,870.53,Revenue,LANCS DAF,0
South Ribble Borough Council,http://statistics.data.gov.uk/id/local-authority/30UE,Open Spaces,Materials General,4040,"55 bags of Farmyard Manure to be delivered to Worden Park Depot, Leyland. Please advise delivery date/time so that the depot can be unlocked.",05/01/2022,0000474239,264.00,Revenue,LBS WORLDWIDE LTD,0
South Ribble Borough Council,http://statistics.data.gov.uk/id/local-authority/30UE,Capital,Cap Contract Payment,C230,"Party Wall Surveyor advice for the McKenzie Arms development, Bamber Bridge.",05/01/2022,0000474097,"1,940.00",Revenue,LEA HOUGH & CO,0
South Ribble Borough Council,http://statistics.data.gov.uk/id/local-authority/30UE,Community Development,Contributions to Other Bodies,4730,Delivery of re-socialisation cafes,26/01/2022,0000475141,"1,000.00",Revenue,Leyland Fox Lane and Sports and Social Club,0
South Ribble Borough Council,http://statistics.data.gov.uk/id/local-authority/30UE,Community Development,Miscellaneous Expenses,4851,Grant of 1000 towards Covid Vulnerable project,26/01/2022,0000475108,"1,000.00",Revenue,LONGTON VM SPORTS & SOCIAL CLUB,0
South Ribble Borough Council,http://statistics.data.gov.uk/id/local-authority/30UE,Community Development,Core Fund,4861,Supply 30 lamp post Poppies for use in Walton-le-Dale and Bamber Bridge,12/01/2022,0000474186,250.00,Revenue,LOSTOCK HALL ROYAL BRITISH LEGION BRANCH,0
South Ribble Borough Council,http://statistics.data.gov.uk/id/local-authority/30UE,Central Support Services,Operational Equip & Tools,4010, PADLOCKS - SQUIRE 660,12/01/2022,0000474032,273.17,Revenue,M A C BUILDING PRODUCTS LTD,0
South Ribble Borough Council,http://statistics.data.gov.uk/id/local-authority/30UE,Open Spaces,GM Refurbishment,4657,"20T Grade 1 topsoil delivered to The Coach House, Hurst Grange Park",12/01/2022,0000473872,460.00,Revenue,M C & M A STEWART HAULAGE LTD,0
South Ribble Borough Council,http://statistics.data.gov.uk/id/local-authority/30UE,Recreation & Sport,Materials General,4040,"30 x ETC Folding Pedals - Net Price 359.70, Vat - 71.94, Invoice Total - 431.64",27/01/2022,0000475293,359.70,Revenue,M&J Distributors Ltd,0
South Ribble Borough Council,http://statistics.data.gov.uk/id/local-authority/30UE,Economic Development,Miscellaneous Expenses,4851,Fruit and Veg Superhero 'Make and Take'. A Taste of Leyland 2021. Quote provided via email.,19/01/2022,0000473371,440.00,Revenue,Magical Story Jars,0
South Ribble Borough Council,http://statistics.data.gov.uk/id/local-authority/30UE,Capital,Capital Grant,C570,"DFG WORKS FOR LEVEL ACCESS BATHROOM AT ADDRESS REDACTED, NEW PROGRESS PROPERTY, 50% OF QUOTE TO BE PAID",12/01/2022,0000474656,"2,634.31",Revenue,MAHONEY CONTRACTORS LTD,0
South Ribble Borough Council,http://statistics.data.gov.uk/id/local-authority/30UE,Capital,Capital Grant,C570,"DFG WORKS FOR LEVEL ACCESS BATHROOM AT ADDRESS REDACTED. NEW PROGRESS PROPERTY, 50% OF QUOTE TO BE PAID",26/01/2022,0000475074,"3,277.02",Revenue,MAHONEY CONTRACTORS LTD,0
South Ribble Borough Council,http://statistics.data.gov.uk/id/local-authority/30UE,Capital,Capital Grant,C570,"DFG WORKS FOR RAMP AT ADDRESS REDACTED AS PER QUOTE SUPPLIED, 50% COVERED BY NEW PROGRESS",26/01/2022,0000475075,"1,892.00",Revenue,MAHONEY CONTRACTORS LTD,0
South Ribble Borough Council,http://statistics.data.gov.uk/id/local-authority/30UE,Capital,Capital Grant,C570,"DFG WORKS FOR LEVEL ACCESS BATHROOM AT ADDRESS REDACTED, NEW PROGRESS PROPERTY, 50% OF QUOTE TO BE PAID",26/01/2022,0000475076,329.55,Revenue,MAHONEY CONTRACTORS LTD,0
South Ribble Borough Council,http://statistics.data.gov.uk/id/local-authority/30UE,Capital,Capital Grant,C570,DFG WORKS TO ADAPT OUTSIDE OF THE PROPERTY AS ASSOCIATED WORKS WITH THE STAIRLIFT. NEW PROGRESS PROPERTY,26/01/2022,0000475077,921.12,Revenue,MAHONEY CONTRACTORS LTD,0
South Ribble Borough Council,http://statistics.data.gov.uk/id/local-authority/30UE,Capital,Capital Grant,C570,"DFG WORKS FOR LEVEL ACCESS BATHROOM AT ADDRESS REDACTED, NEW PROGRESS PROPERTY, 50% OF QUOTE TO BE PAID",26/01/2022,0000475078,"2,897.70",Revenue,MAHONEY CONTRACTORS LTD,0
South Ribble Borough Council,http://statistics.data.gov.uk/id/local-authority/30UE,Capital,Capital Grant,C570,"DFG WORKS FOR LEVEL ACCESS BATHROOM AT ADDRESS REDACTED, NEW PROGRESS PROPERTY, 50% OF QUOTE TO BE PAID",26/01/2022,0000475079,"1,434.60",Revenue,MAHONEY CONTRACTORS LTD,0
South Ribble Borough Council,http://statistics.data.gov.uk/id/local-authority/30UE,Capital,Capital Grant,C570,"DFG WORKS FOR LEVEL ACCESS BATHROOM AT ADDRESS REDACTED, NEW PROGRESS PROPERTY, 50% OF QUOTE TO BE PAID",26/01/2022,0000475080,"2,720.56",Revenue,MAHONEY CONTRACTORS LTD,0
South Ribble Borough Council,http://statistics.data.gov.uk/id/local-authority/30UE,Capital,Capital Grant,C570,"DFG WORKS FOR LEVEL ACCESS BATHROOM AT ADDRESS REDACTED, NEW PROGRESS PROPERTY, 50% OF QUOTE TO BE PAID",26/01/2022,0000475254,"2,825.31",Revenue,MAHONEY CONTRACTORS LTD,0
South Ribble Borough Council,http://statistics.data.gov.uk/id/local-authority/30UE,Parking Services,Materials General,4040,1X BRIERLEY ROAD,19/01/2022,0000474796,48.20,Revenue,Main Street Signs Ltd,0
South Ribble Borough Council,http://statistics.data.gov.uk/id/local-authority/30UE,Parking Services,Materials General,4040,1X OLDFIELD ROAD,19/01/2022,0000474796,48.20,Revenue,Main Street Signs Ltd,0
South Ribble Borough Council,http://statistics.data.gov.uk/id/local-authority/30UE,Parking Services,Materials General,4040,1X OXFORD ROAD,19/01/2022,0000474796,46.00,Revenue,Main Street Signs Ltd,0
South Ribble Borough Council,http://statistics.data.gov.uk/id/local-authority/30UE,Parking Services,Materials General,4040,2X PARKGATE DRIVE T,19/01/2022,0000474796,104.60,Revenue,Main Street Signs Ltd,0
South Ribble Borough Council,http://statistics.data.gov.uk/id/local-authority/30UE,Parking Services,Materials General,4040,2X ROYAL AVENUE,19/01/2022,0000474796,94.20,Revenue,Main Street Signs Ltd,0
South Ribble Borough Council,http://statistics.data.gov.uk/id/local-authority/30UE,Parking Services,Materials General,4040,1X VICTORIA ROAD - BRIDGE BANK,19/01/2022,0000474796,61.40,Revenue,Main Street Signs Ltd,0
South Ribble Borough Council,http://statistics.data.gov.uk/id/local-authority/30UE,Parking Services,Materials General,4040,1X DAISY BANK CLOSE T,19/01/2022,0000474796,53.40,Revenue,Main Street Signs Ltd,0
South Ribble Borough Council,http://statistics.data.gov.uk/id/local-authority/30UE,Parking Services,Materials General,4040,1X ST JAMES GARDENS T,19/01/2022,0000474796,53.40,Revenue,Main Street Signs Ltd,0
South Ribble Borough Council,http://statistics.data.gov.uk/id/local-authority/30UE,Parking Services,Materials General,4040,1X MOSLEY STREET,19/01/2022,0000474796,48.20,Revenue,Main Street Signs Ltd,0
South Ribble Borough Council,http://statistics.data.gov.uk/id/local-authority/30UE,Parking Services,Materials General,4040,1X MALDEN STREET,19/01/2022,0000474796,48.20,Revenue,Main Street Signs Ltd,0
South Ribble Borough Council,http://statistics.data.gov.uk/id/local-authority/30UE,Parking Services,Materials General,4040,1X BALCARRES ROAD,19/01/2022,0000474796,49.30,Revenue,Main Street Signs Ltd,0
South Ribble Borough Council,http://statistics.data.gov.uk/id/local-authority/30UE,Parking Services,Materials General,4040,2X PARK AVENUE T,19/01/2022,0000474796,98.00,Revenue,Main Street Signs Ltd,0
South Ribble Borough Council,http://statistics.data.gov.uk/id/local-authority/30UE,Parking Services,Materials General,4040,2X GREEN LANE,19/01/2022,0000474796,89.80,Revenue,Main Street Signs Ltd,0
South Ribble Borough Council,http://statistics.data.gov.uk/id/local-authority/30UE,Parking Services,Materials General,4040,DELIVERY CHARGE,19/01/2022,0000474796,49.50,Revenue,Main Street Signs Ltd,0
South Ribble Borough Council,http://statistics.data.gov.uk/id/local-authority/30UE,Surplus or Deficit on Trading,Reactive Repair & Maintenance,2020,"North Lodge Worden Park Remove all slates Re-felt and re-battonReslate using exisisting slates, Rebed reclaimed ridges per NAME REDACTED",19/01/2022,0000474798,"1,400.00",Revenue,Mick Bamber,0
South Ribble Borough Council,http://statistics.data.gov.uk/id/local-authority/30UE,Surplus or Deficit on Trading,Reactive Repair & Maintenance,2020,"Fixed scaffolding to be erected, new flashings and soakers to be manufactured. Avacab on Moss Side Ind Est as per NAME REDACTED request",19/01/2022,0000474799,"3,800.00",Revenue,Mick Bamber,0
South Ribble Borough Council,http://statistics.data.gov.uk/id/local-authority/30UE,Regulatory Services,Reactive Repair & Maintenance,2020,"To replace the lead flashing at Red frog, Worden park as per your estimate ref 1180",19/01/2022,0000474878,350.00,Revenue,Mick Bamber,0
South Ribble Borough Council,http://statistics.data.gov.uk/id/local-authority/30UE,Open Spaces,GM Refurbishment,4657,"Transport of container from Hurst Grange Park, Penwortham to Moss Side Depot Leyland.",05/01/2022,0000474179,295.00,Revenue,MILLERS OF LONGTON LTD,0
South Ribble Borough Council,http://statistics.data.gov.uk/id/local-authority/30UE,Central Support Services,External Contractors Charges,4570,Recovery of YD19 AUT from Chorley to Moss Side Depot 22.12.21 JFC17756 (Job No 117897),26/01/2022,0000475030,262.00,Revenue,MILLERS OF LONGTON LTD,0
South Ribble Borough Council,http://statistics.data.gov.uk/id/local-authority/30UE,Central Support Services,External Contractors Charges,4570,Recovery of YD19 AUT from Moss Side Depot to Lancs DAF 23.12.21 JFC17756 (Job No 118013),26/01/2022,0000475031,262.00,Revenue,MILLERS OF LONGTON LTD,0
South Ribble Borough Council,http://statistics.data.gov.uk/id/local-authority/30UE,Central Support Services,External Contractors Charges,4570,Recovery of YD19 AUT from Lancs DAF to Moss Side Depot 23.12.21 JFC17756 (Job 118047),27/01/2022,0000475051,262.00,Revenue,MILLERS OF LONGTON LTD,0
South Ribble Borough Council,http://statistics.data.gov.uk/id/local-authority/30UE,Central Support Services,Kennelling Fees,4521,Provision of stray dog services- July 2021,05/01/2022,0000474547,325.50,Revenue,MORNINGSIDE KENNELS,0
South Ribble Borough Council,http://statistics.data.gov.uk/id/local-authority/30UE,Central Support Services,Kennelling Fees,4521,Provision of stray dog services- August 2021,05/01/2022,0000474548,290.90,Revenue,MORNINGSIDE KENNELS,0
South Ribble Borough Council,http://statistics.data.gov.uk/id/local-authority/30UE,Central Support Services,Kennelling Fees,4521,Provision of stray dog services- September 2021,05/01/2022,0000474549,358.48,Revenue,MORNINGSIDE KENNELS,0
South Ribble Borough Council,http://statistics.data.gov.uk/id/local-authority/30UE,Central Support Services,Kennelling Fees,4521,Provision of stray dog services- October 2021,05/01/2022,0000474550,512.12,Revenue,MORNINGSIDE KENNELS,0
South Ribble Borough Council,http://statistics.data.gov.uk/id/local-authority/30UE,Central Support Services,Short Course,1402,"NAME REDACTED TO ATTEND 'CHAINSAW OPERATOR (LANTRA) CROSSCUT UP TO 380' COURSE, 31 JANUARY 2022-4 FEBRUARY 2022",26/01/2022,0000475032,"2,317.50",Revenue,Morton Training Limited,0
South Ribble Borough Council,http://statistics.data.gov.uk/id/local-authority/30UE,Central Support Services,Materials General,4040,2 x axle stands,26/01/2022,0000474552,"1,050.00",Revenue,MRB Workshop Services Ltd,0
South Ribble Borough Council,http://statistics.data.gov.uk/id/local-authority/30UE,Central Support Services,Operational Equip & Tools,4010,Callout to repair Koni ST4250.,27/01/2022,0000475298,"1,881.40",Revenue,MRB Workshop Services Ltd,0
South Ribble Borough Council,http://statistics.data.gov.uk/id/local-authority/30UE,Central Support Services,External Contractors Charges,4570,1 Steam Clean 2.12.21 VO21 YVL JFC17792,26/01/2022,0000474928,65.00,Revenue,NAYLORS TRANSPORT (LEYLAND) ltd,0
South Ribble Borough Council,http://statistics.data.gov.uk/id/local-authority/30UE,Central Support Services,External Contractors Charges,4570,1 Steam Clean 10.12.21 VX18 KLC JFC17793,26/01/2022,0000474928,65.00,Revenue,NAYLORS TRANSPORT (LEYLAND) ltd,0
South Ribble Borough Council,http://statistics.data.gov.uk/id/local-authority/30UE,Central Support Services,External Contractors Charges,4570,1 Steam Clean 14.12.21 MJ21 AVX JFC17794,26/01/2022,0000474928,65.00,Revenue,NAYLORS TRANSPORT (LEYLAND) ltd,0
South Ribble Borough Council,http://statistics.data.gov.uk/id/local-authority/30UE,Central Support Services,External Contractors Charges,4570,1 Steam Clean 15.12.21 VO21 VYK JFC17795,26/01/2022,0000474928,65.00,Revenue,NAYLORS TRANSPORT (LEYLAND) ltd,0
South Ribble Borough Council,http://statistics.data.gov.uk/id/local-authority/30UE,Central Support Services,External Contractors Charges,4570,1 Steam Clean 21.12.21 PO20 ZRV JFC17796,26/01/2022,0000474928,65.00,Revenue,NAYLORS TRANSPORT (LEYLAND) ltd,0
South Ribble Borough Council,http://statistics.data.gov.uk/id/local-authority/30UE,Central Support Services,External Contractors Charges,4570,1 Steam Clean 22.12.21 PJ62 UCG JFC17797,26/01/2022,0000474928,65.00,Revenue,NAYLORS TRANSPORT (LEYLAND) ltd,0
South Ribble Borough Council,http://statistics.data.gov.uk/id/local-authority/30UE,Regulatory Services,Burial Expenses,5310,Funeral for NAME REDACTED,26/01/2022,0000475136,"3,214.00",Revenue,NEAL BUCKLEY,0
South Ribble Borough Council,http://statistics.data.gov.uk/id/local-authority/30UE,Economic Development,Miscellaneous Expenses,4851,Leyland Christmas Lights Switch On. Medical Cover - 4th December,12/01/2022,0000474776,907.75,Revenue,North West Medical Solutions Ltd,0
South Ribble Borough Council,http://statistics.data.gov.uk/id/local-authority/30UE,Central Support Services,Materials General,4040,SCARAB MINI SWEEPER BRUSHES - POLY/WIRE MIX MATHIEU-0120089,12/01/2022,0000474177,"1,207.50",Revenue,NORTHERN MUNICIPAL SPARES LTD,0
South Ribble Borough Council,http://statistics.data.gov.uk/id/local-authority/30UE,Central Support Services,Materials General,4040,CHANNEL BRUSH - 2.8 mm POLY & 3.3mm WIRE 5 row 700/1000mm - MIDI SWEEPER 78399/2,12/01/2022,0000474177,742.50,Revenue,NORTHERN MUNICIPAL SPARES LTD,0
South Ribble Borough Council,http://statistics.data.gov.uk/id/local-authority/30UE,Central Support Services,Materials General,4040,CHANNEL BRUSH - 2.8 mm POLY & 3.3mm WIRE 5 row 700/1000mm - MIDI SWEEPER 78399/2,19/01/2022,0000474957,"1,117.50",Revenue,NORTHERN MUNICIPAL SPARES LTD,0
South Ribble Borough Council,http://statistics.data.gov.uk/id/local-authority/30UE,Other Welfare Services,Furniture,4017,"To purchase a fridge freezer, electric cooker and washing machine as per agreed",12/01/2022,0000474110,714.17,Revenue,NORTHWEST DOMESTIC SERVICES,0
South Ribble Borough Council,http://statistics.data.gov.uk/id/local-authority/30UE,Community Development,Contributions to Other Bodies,4730,"Step up grant white goods, Beko Fridge Freezer 420.00, Hotpoint Auto 7KG 325.00, Creda Condenser Dryer 159.00",26/01/2022,0000475091,753.33,Revenue,NORTHWEST DOMESTIC SERVICES,0
South Ribble Borough Council,http://statistics.data.gov.uk/id/local-authority/30UE,Recreation & Sport,Electricity,2303,1/6 to 30/6/2021,05/01/2022,0000474098,"2,883.51",Revenue,NPOWER Business,0
South Ribble Borough Council,http://statistics.data.gov.uk/id/local-authority/30UE,Recreation & Sport,Electricity,2303,1/11 to 30/11/21,12/01/2022,0000474165,"2,647.91",Revenue,NPOWER Business,0
South Ribble Borough Council,http://statistics.data.gov.uk/id/local-authority/30UE,Recreation & Sport,Electricity,2303,1/9 to 30/9/21,19/01/2022,0000474887,"3,478.47",Revenue,NPOWER Business,0
South Ribble Borough Council,http://statistics.data.gov.uk/id/local-authority/30UE,Recreation & Sport,Electricity,2303,1/9 to 30/9/21,19/01/2022,0000474888,"5,569.44",Revenue,NPOWER Business,0
South Ribble Borough Council,http://statistics.data.gov.uk/id/local-authority/30UE,Recreation & Sport,Electricity,2303,1/9 to 30/9/21,19/01/2022,0000474889,"2,722.78",Revenue,NPOWER Business,0
South Ribble Borough Council,http://statistics.data.gov.uk/id/local-authority/30UE,Recreation & Sport,Electricity,2303,1/9 TO 30/9/21,19/01/2022,0000474890,"2,976.71",Revenue,NPOWER Business,0
South Ribble Borough Council,http://statistics.data.gov.uk/id/local-authority/30UE,Recreation & Sport,Electricity,2303,1/10 TO 31/10/21,19/01/2022,0000474891,"3,709.66",Revenue,NPOWER Business,0
South Ribble Borough Council,http://statistics.data.gov.uk/id/local-authority/30UE,Recreation & Sport,Electricity,2303,1/10 TO 31/10/21,19/01/2022,0000474892,"3,037.11",Revenue,NPOWER Business,0
South Ribble Borough Council,http://statistics.data.gov.uk/id/local-authority/30UE,Recreation & Sport,Electricity,2303,1/10 TO 31/10/21,19/01/2022,0000474893,"5,499.99",Revenue,NPOWER Business,0
South Ribble Borough Council,http://statistics.data.gov.uk/id/local-authority/30UE,Recreation & Sport,Electricity,2303,1/10 to 31/10/21,19/01/2022,0000474894,"3,323.43",Revenue,NPOWER Business,0
South Ribble Borough Council,http://statistics.data.gov.uk/id/local-authority/30UE,Recreation & Sport,Electricity,2303,1/12 to 31/12/21,26/01/2022,0000474942,"2,359.61",Revenue,NPOWER Business,0
South Ribble Borough Council,http://statistics.data.gov.uk/id/local-authority/30UE,Recreation & Sport,Electricity,2303,1/12 to 31/12/21,19/01/2022,0000474943,"3,389.89",Revenue,NPOWER Business,0
South Ribble Borough Council,http://statistics.data.gov.uk/id/local-authority/30UE,Recreation & Sport,Electricity,2303,1/12 to 31/12/21,26/01/2022,0000474944,"4,737.67",Revenue,NPOWER Business,0
South Ribble Borough Council,http://statistics.data.gov.uk/id/local-authority/30UE,Central Support Services,Electricity,2303,2021 - 22 Annual Metering Charge,26/01/2022,0000475285,432.00,Revenue,NPOWER Business,0
South Ribble Borough Council,http://statistics.data.gov.uk/id/local-authority/30UE,Parking Services,Parking Attendants,4514,Variable Fee Car Park Enforcement November 2021- Variable  Recharge Items,05/01/2022,0000474597,"1,579.44",Revenue,NSL LTD,0
South Ribble Borough Council,http://statistics.data.gov.uk/id/local-authority/30UE,Parking Services,Cash Collection Charges Car Parks,4855,Variable Fee Car Park Enforcement November 2021- Fixed Recharge Items,05/01/2022,0000474597,637.21,Revenue,NSL LTD,0
South Ribble Borough Council,http://statistics.data.gov.uk/id/local-authority/30UE,Parking Services,Parking Attendants,4514,Variable Fee Car Park Enforcement December 2021-Variable Recharge Items,26/01/2022,0000475124,"1,646.80",Revenue,NSL LTD,0
South Ribble Borough Council,http://statistics.data.gov.uk/id/local-authority/30UE,Parking Services,Cash Collection Charges Car Parks,4855,Variable Fee Car Park Enforcement December 2021 - Fixed Recharge Items,26/01/2022,0000475124,737.08,Revenue,NSL LTD,0
South Ribble Borough Council,http://statistics.data.gov.uk/id/local-authority/30UE,Central Support Services,Short Course,1402,NAME REDACTED TO ATTEND 'COSHH TRAINING' AT CIVIC CENTRE NOVEMBER 2021,26/01/2022,0000475010,495.00,Revenue,One Stop Hire,0
South Ribble Borough Council,http://statistics.data.gov.uk/id/local-authority/30UE,Central Support Services,Consumable Clng Materials,2711,BC015-75 JANGRO THICKENED BLEACH 750ML 24 bottles @ 0.50,12/01/2022,0000474554,12.00,Revenue,Pattersons (Bristol) Ltd,0
South Ribble Borough Council,http://statistics.data.gov.uk/id/local-authority/30UE,Central Support Services,Consumable Clng Materials,2711,AA201 JANGRO MICRO MINI TOILET ROLL 100M X 90MM (24) 8 packs @ 10.59,12/01/2022,0000474554,84.72,Revenue,Pattersons (Bristol) Ltd,0
South Ribble Borough Council,http://statistics.data.gov.uk/id/local-authority/30UE,Central Support Services,Consumable Clng Materials,2711,BK101-50 JANGRO PINK PEARLISED HAND SOAP 500ML 2 bottles @ 1.22,12/01/2022,0000474554,2.44,Revenue,Pattersons (Bristol) Ltd,0
South Ribble Borough Council,http://statistics.data.gov.uk/id/local-authority/30UE,Central Support Services,Consumable Clng Materials,2711,AE234 TORK S-FOLD HAND TOWEL 1PLY BLUE (4000SHT) 10 packs @ 13.25,12/01/2022,0000474554,132.50,Revenue,Pattersons (Bristol) Ltd,0
South Ribble Borough Council,http://statistics.data.gov.uk/id/local-authority/30UE,Central Support Services,Consumable Clng Materials,2711,CM180 JANGRO REFUSE SACKS 18X29X39 180G HEAVY DUTY BLACK (200) 4 packs @ 11.75,12/01/2022,0000474554,47.00,Revenue,Pattersons (Bristol) Ltd,0
South Ribble Borough Council,http://statistics.data.gov.uk/id/local-authority/30UE,Central Support Services,Consumable Clng Materials,2711,BC045-1 JANGRO TOILET & WASHROOM CLEANER DESCALER 1 LTR 24 bottles @ 0.94,12/01/2022,0000474554,22.56,Revenue,Pattersons (Bristol) Ltd,0
South Ribble Borough Council,http://statistics.data.gov.uk/id/local-authority/30UE,Central Support Services,Consumable Clng Materials,2711,DG150-L JANGRO PROFESSIONAL NITRILE DISPOSABLE GLOVE POWDER FREE BLUE LARGE x 100 10 boxes @ 3.52,12/01/2022,0000474554,92.50,Revenue,Pattersons (Bristol) Ltd,0
South Ribble Borough Council,http://statistics.data.gov.uk/id/local-authority/30UE,Central Support Services,Consumable Clng Materials,2711,BC040-1 JANGRO PERFUMED TOILET CLEANER 1LTR 24 bottles @ 0.90,12/01/2022,0000474554,21.60,Revenue,Pattersons (Bristol) Ltd,0
South Ribble Borough Council,http://statistics.data.gov.uk/id/local-authority/30UE,Central Support Services,Consumable Clng Materials,2711,BB034-5 JANGRO CONCENTRATED GREEN DETERGENT 20% 5LTR 4 bottles @ 3.30,12/01/2022,0000474554,13.20,Revenue,Pattersons (Bristol) Ltd,0
South Ribble Borough Council,http://statistics.data.gov.uk/id/local-authority/30UE,Central Support Services,Consumable Clng Materials,2711,BA048-5 JANGRO CLEANER DISINFECTANT 5LTR 2 bottles @ 9.00,12/01/2022,0000474554,18.00,Revenue,Pattersons (Bristol) Ltd,0
South Ribble Borough Council,http://statistics.data.gov.uk/id/local-authority/30UE,Central Support Services,Consumable Clng Materials,2711,BK140-5 Jangro Alcohol Gel Hand Rub 5 Litre (Case of 2) 1 @ 50.00,12/01/2022,0000474554,50.00,Revenue,Pattersons (Bristol) Ltd,0
South Ribble Borough Council,http://statistics.data.gov.uk/id/local-authority/30UE,Central Support Services,Consumable Clng Materials,2711,HL085 Jangro Erase All Sponges (Pack of 10) 3 packs @ 6.00,12/01/2022,0000474554,7.26,Revenue,Pattersons (Bristol) Ltd,0
South Ribble Borough Council,http://statistics.data.gov.uk/id/local-authority/30UE,Central Support Services,Consumable Clng Materials,2711,JE630071 Carex Original Handwash 500ml 12 @ 3.00,12/01/2022,0000474554,36.00,Revenue,Pattersons (Bristol) Ltd,0
South Ribble Borough Council,http://statistics.data.gov.uk/id/local-authority/30UE,Surplus or Deficit on Trading,Reactive Repair & Maintenance,2020,Undertake and provide EPC certificates for 129 Clydesdale Place and 130 Clydesdale Place PR26 7QS,12/01/2022,0000474158,360.00,Revenue,Paul Foster and Co Ltd,0
South Ribble Borough Council,http://statistics.data.gov.uk/id/local-authority/30UE,Economic Development,Miscellaneous Expenses,4851,"CHRISTMAS LIGHTS SWITCH ON, COLLECT GENERATOR AND RETURN TO AWS, SUPPLY DISTRO AND CABLES FOR STALLS, LIGHTING",05/01/2022,0000474595,360.00,Revenue,Paul K Sound & Vision,0
South Ribble Borough Council,http://statistics.data.gov.uk/id/local-authority/30UE,Community Development,Professional Fees,4510,Workshops for the HAF project over December,12/01/2022,0000474800,"3,360.00",Revenue,Penwortham Boxing Club CIC,0
South Ribble Borough Council,http://statistics.data.gov.uk/id/local-authority/30UE,Central Support Services,Occupational Health,1408,"PROVISION OF WELLBEING, TELEPHONE CONSULTATIONS AND COUNSELLING ETC FROM 12 OCTOBER 2021 TO MARCH 2022",26/01/2022,0000473587,449.50,Revenue,People Asset Management,0
South Ribble Borough Council,http://statistics.data.gov.uk/id/local-authority/30UE,Central Support Services,Occupational Health,1408,non vat,26/01/2022,0000473587,105.00,Revenue,People Asset Management,0
South Ribble Borough Council,http://statistics.data.gov.uk/id/local-authority/30UE,Central Support Services,Occupational Health,1408,"PROVISION OF WELLBEING, TELEPHONE CONSULTATIONS AND COUNSELLING ETC FROM 12 OCTOBER 2021 TO MARCH 2022",12/01/2022,0000474225,624.00,Revenue,People Asset Management,0
South Ribble Borough Council,http://statistics.data.gov.uk/id/local-authority/30UE,Regulatory Services,Disclosure Barring,4522,gov fee,26/01/2022,0000474162,520.00,Revenue,Personnel Checks,0
South Ribble Borough Council,http://statistics.data.gov.uk/id/local-authority/30UE,Regulatory Services,Disclosure Barring,4522,admin fee,26/01/2022,0000474162,173.29,Revenue,Personnel Checks,0
South Ribble Borough Council,http://statistics.data.gov.uk/id/local-authority/30UE,Central Support Services,Software Licensing,4243,"Red Hat Enterprise Linux Server, Standard (physical or virtual nodes) 911.58",19/01/2022,0000473698,911.58,Revenue,PHOENIX SOFTWARE LTD,0
South Ribble Borough Council,http://statistics.data.gov.uk/id/local-authority/30UE,Recreation & Sport,Planned Annual Repair & Maintenance,2021,2021 / 2022 annual contract for the fixed wire testing for South Ribble Tennis Centre as per quotation ref QT-2200004/1,26/01/2022,0000475107,427.50,Revenue,PHS Compliance,0
South Ribble Borough Council,http://statistics.data.gov.uk/id/local-authority/30UE,Central Support Services,Consumable Clng Materials,2711,Order to cover period 1st April 2021 - 30th June 2021 for sanitary services to Civic Centre to cover invoice 68172034,12/01/2022,0000473986,982.31,Revenue,PHS GROUP PLC,0
South Ribble Borough Council,http://statistics.data.gov.uk/id/local-authority/30UE,Central Support Services,Rental,4012,"2021 / 2022 annual contract for the provision of sanitary services to Moss Side Depot, 81 Bison Place, Leyland as per your ref 105797",12/01/2022,0000473987,334.24,Revenue,PHS GROUP PLC,0
South Ribble Borough Council,http://statistics.data.gov.uk/id/local-authority/30UE,Central Support Services,Rental,4012,2021 / 2022 annual contract for the provision of sanitary services to the Civic Centre as per your ref 105796,06/01/2022,0000473991,982.31,Revenue,PHS GROUP PLC,0
South Ribble Borough Council,http://statistics.data.gov.uk/id/local-authority/30UE,Central Support Services,Rental,4012,"2021 / 2022 annual contract for the provision of sanitary services to Moss Side Depot, 81 Bison Place, Leyland as per your ref 105797",12/01/2022,0000473999,410.88,Revenue,PHS GROUP PLC,0
South Ribble Borough Council,http://statistics.data.gov.uk/id/local-authority/30UE,Central Support Services,Franked Post,4292,Top up credit for Serial number 5557641,27/01/2022,0000475086,"5,259.40",Revenue,PITNEY BOWES LTD,0
South Ribble Borough Council,http://statistics.data.gov.uk/id/local-authority/30UE,Central Support Services,Agency Staff,1121,Planning Enforcement Services,19/01/2022,0000474931,"1,470.10",Revenue,Planning Control & PACE Solutions,0
South Ribble Borough Council,http://statistics.data.gov.uk/id/local-authority/30UE,Central Support Services,Paper Bulk,4133,Premier Paper supplies 2021-31/03/2022 Please quote this reference on all future invoices,12/01/2022,0000473935,464.63,Revenue,PREMIER PAPER GROUP LTD,0
South Ribble Borough Council,http://statistics.data.gov.uk/id/local-authority/30UE,Homelessness,Security Measures,4272,Agreed works and survey NAME REDACTED,26/01/2022,0000474234,"1,058.00",Revenue,PRESTON CARE & REPAIR,0
South Ribble Borough Council,http://statistics.data.gov.uk/id/local-authority/30UE,Elections,Polling Centre Costs,4421,BBE BY-ELECTION - CNL'S QUANTITY 140 - JOB REF 8875,05/01/2022,0000474219,538.75,Revenue,PRINT IMAGE NETWORK LTD,0
South Ribble Borough Council,http://statistics.data.gov.uk/id/local-authority/30UE,Elections,Polling Centre Costs,4421,BBE BY-ELECTION - BALLOT BOOKS - QUANTITY 35 ORDINARY/3 TENDERED - JOB REF 8873,19/01/2022,0000474859,849.00,Revenue,PRINT IMAGE NETWORK LTD,0
South Ribble Borough Council,http://statistics.data.gov.uk/id/local-authority/30UE,Homelessness,Void Loss,5313,Void loss for temporary accommodation..,26/01/2022,0000475142,"4,695.32",Revenue,PROGRESS CARE HOUSING ASSOC LTD,0
South Ribble Borough Council,http://statistics.data.gov.uk/id/local-authority/30UE,Other Welfare Services,Maintenance & Repair,4013,Various works including supply and install timber battening and fittings at ADDRESS REDACTED,12/01/2022,0000474171,220.00,Revenue,PSR & Sons Joiners & Building Contractors,0
South Ribble Borough Council,http://statistics.data.gov.uk/id/local-authority/30UE,Other Welfare Services,Maintenance & Repair,4013,LABOUR,12/01/2022,0000474171,40.00,Revenue,PSR & Sons Joiners & Building Contractors,0
South Ribble Borough Council,http://statistics.data.gov.uk/id/local-authority/30UE,Recreation & Sport,Reactive Repair & Maintenance,2020,"Leyland leisure centre front elevation refurbishment as per NAME REDACTED request, Take out existing gate and remove from site",12/01/2022,0000474211,"8,280.00",Revenue,PSR & Sons Joiners & Building Contractors,0
South Ribble Borough Council,http://statistics.data.gov.uk/id/local-authority/30UE,Capital,Cap Contract Payment,C230,"REMODDELLING WORKS TO SOUTH RIBLLE TENNIS CENTRE, 16TH NOVEMBER 2021, as per NAME REDACTED request",12/01/2022,0000474212,"9,680.00",Revenue,PSR & Sons Joiners & Building Contractors,0
South Ribble Borough Council,http://statistics.data.gov.uk/id/local-authority/30UE,Other Welfare Services,Materials General,4040,"Building repair works for resettlement programme, Supply and install Timber Battening complete with fitting of poles using appropriate Fixings.",12/01/2022,0000474290,260.00,Revenue,PSR & Sons Joiners & Building Contractors,0
South Ribble Borough Council,http://statistics.data.gov.uk/id/local-authority/30UE,Other Welfare Services,Materials General,4040,LABOUR,12/01/2022,0000474290,30.00,Revenue,PSR & Sons Joiners & Building Contractors,0
South Ribble Borough Council,http://statistics.data.gov.uk/id/local-authority/30UE,Homelessness,Temporary Accommodation,5311,Duty placement 1370.00 1.11.21 - 30.11.21,05/01/2022,0000474584,"1,370.00",Revenue,Purpleroomz,0
South Ribble Borough Council,http://statistics.data.gov.uk/id/local-authority/30UE,Homelessness,Contributions to Other Bodies,4730,NAME REDACTED provision 22.12.2021 - 04.01.2022.,19/01/2022,0000474756,"3,500.00",Revenue,Purpleroomz,0
South Ribble Borough Council,http://statistics.data.gov.uk/id/local-authority/30UE,Homelessness,Contributions to Other Bodies,4730,31/01/2022.,19/01/2022,0000474980,"2,600.00",Revenue,Purpleroomz,0
South Ribble Borough Council,http://statistics.data.gov.uk/id/local-authority/30UE,Homelessness,Temporary Accommodation,5311,01/01/2022-31/01/2022.,26/01/2022,0000475097,"1,440.00",Revenue,Purpleroomz,0
South Ribble Borough Council,http://statistics.data.gov.uk/id/local-authority/30UE,Central Support Services,Professional Fees,4510,HEALTH AND SAFETY CONSULTANCY AND SUPPORT 2021/2022,12/01/2022,0000473856,"1,080.00",Revenue,QHS SOLUTIONS,0
South Ribble Borough Council,http://statistics.data.gov.uk/id/local-authority/30UE,Central Support Services,Computer Maintenance,4211,System rental and Communications Charge - 60 vehicles for 3 months 1.1.22 - 31.3.22,26/01/2022,0000475018,"2,070.00",Revenue,Quartix,0
South Ribble Borough Council,http://statistics.data.gov.uk/id/local-authority/30UE,Capital,Cap Contract Payment,C230,"Alteration, Adaption, Extension and Refurbishment Works - Hurst Grange Coach House, Penwortham",12/01/2022,0000474265,"32,567.04",Revenue,R Developments Ltd T/A Rosslee Construction Ltd,0
South Ribble Borough Council,http://statistics.data.gov.uk/id/local-authority/30UE,Surplus or Deficit on Trading,Planned Annual Repair & Maintenance,2021,Annual Contract 2021/2022for the service of the dog wash at Worden Park - please provide photographic evidence as required,12/01/2022,0000474615,550.00,Revenue,RED ROSE BUILDING MAINTENANCE,0
South Ribble Borough Council,http://statistics.data.gov.uk/id/local-authority/30UE,Surplus or Deficit on Trading,Planned Annual Repair & Maintenance,2021,labour,12/01/2022,0000474615,50.00,Revenue,RED ROSE BUILDING MAINTENANCE,0
South Ribble Borough Council,http://statistics.data.gov.uk/id/local-authority/30UE,Central Support Services,Planned Annual Repair & Maintenance,2021,Annual Contract 2021/2022 for the service of grease trap at Civic Centre,26/01/2022,0000475041,225.00,Revenue,RED ROSE BUILDING MAINTENANCE,0
South Ribble Borough Council,http://statistics.data.gov.uk/id/local-authority/30UE,Central Support Services,Planned Annual Repair & Maintenance,2021,LABOUR,26/01/2022,0000475041,50.00,Revenue,RED ROSE BUILDING MAINTENANCE,0
South Ribble Borough Council,http://statistics.data.gov.uk/id/local-authority/30UE,Central Support Services,Materials General,4040,1 Yoke Ram YA19 NKD JFC17697,05/01/2022,0000474556,730.00,Revenue,Refuse Vehicle Parts,0
South Ribble Borough Council,http://statistics.data.gov.uk/id/local-authority/30UE,Elections,Postal Voting Costs,4422,BUSINESS MAIL ADVANCED 1C UNSORTED (BAMBER BRIDGE),12/01/2022,0000474782,368.73,Revenue,ROYAL MAIL GROUP PLC,0
South Ribble Borough Council,http://statistics.data.gov.uk/id/local-authority/30UE,Development Control,Consultancy Fees,4541,Consultancy Fees for Agricultural Building for Storage of Machinery and Hay App number 07/2021/00741/FUL,26/01/2022,0000475130,250.00,Revenue,RSK ADAS Ltd,0
South Ribble Borough Council,http://statistics.data.gov.uk/id/local-authority/30UE,Development Control,Consultancy Fees,4541,"Consultancy fees - Agricultural Building for Storage of Machinery and Hay at Snaylam Farm, Much Hoole, Preston",26/01/2022,0000475132,250.00,Revenue,RSK ADAS Ltd,0
South Ribble Borough Council,http://statistics.data.gov.uk/id/local-authority/30UE,Central Support Services,Individual Subs Prof. Bodies,1741,MEMBERSHIP SUBSCRIPTION RENEWAL FOR 2022 - FOR NAME REDACTED REF 40048,12/01/2022,0000474578,321.00,Revenue,RTPI,0
South Ribble Borough Council,http://statistics.data.gov.uk/id/local-authority/30UE,Central Support Services,Individual Subs Prof. Bodies,1741,MEMBERSHIP SUBSCRIPTION RENEWAL FOR 2022 - FOR NAME REDACTED REF 52069,12/01/2022,0000474587,321.00,Revenue,RTPI,0
South Ribble Borough Council,http://statistics.data.gov.uk/id/local-authority/30UE,Central Support Services,Individual Subs Prof. Bodies,1741,MEMBERSHIP SUBSCRIPTION RENEWAL FOR 2022 - FOR NAME REDACTED REF 34367,12/01/2022,0000474588,321.00,Revenue,RTPI,0
South Ribble Borough Council,http://statistics.data.gov.uk/id/local-authority/30UE,Central Support Services,Individual Subs Prof. Bodies,1741,MEMBERSHIP SUBSCRIPTION RENEWAL FOR 2022 - FOR NAME REDACTED 56607,12/01/2022,0000474762,321.00,Revenue,RTPI,0
South Ribble Borough Council,http://statistics.data.gov.uk/id/local-authority/30UE,Recreation & Sport,Planned Annual Repair & Maintenance,2021,"2021 / 2022 annual contract, 4 visits per year for the maintenance of the synthetic football pitches South Ribble Tennis Centre.",12/01/2022,0000474566,520.00,Revenue,S & C Slatter Limited,0
South Ribble Borough Council,http://statistics.data.gov.uk/id/local-authority/30UE,Central Support Services,Materials General,4040,1000ltrs of Energize-Premium Hi-Foaming TFR with Wax (Super Conc),12/01/2022,0000474616,911.15,Revenue,Saanro International Ltd,0
South Ribble Borough Council,http://statistics.data.gov.uk/id/local-authority/30UE,Capital,Cap Contract Payment,C230,"Cost of Consultancy Support on project RIBA Stage 1-2 for extra care project, West Paddock.",26/01/2022,0000474958,"3,980.00",Revenue,SDA Consulting LLP,0
South Ribble Borough Council,http://statistics.data.gov.uk/id/local-authority/30UE,Central Support Services,Intruder Alarm,2035,credit 5558 to cancel this invoice,26/01/2022,0000475090,365.00,Revenue,SECTOR SECURITY SERVICES LTD,0
South Ribble Borough Council,http://statistics.data.gov.uk/id/local-authority/30UE,Central Support Services,Reactive Repair & Maintenance,2020,To cover the three days over Christmas (Manning the front door and allowing DWP guests in). 8th Dec 2021 as per NAME REDACTED request,26/01/2022,0000475105,398.10,Revenue,SECTOR SECURITY SERVICES LTD,0
South Ribble Borough Council,http://statistics.data.gov.uk/id/local-authority/30UE,Central Support Services,Agency Staff,1121,COST OF ENGAGING AGENCY LOCUM SOLICITOR FOR 4 DAYS PER WEEK FROM 7 SEPTEMBER 2021 UNTIL CHRISTMAS 2021,26/01/2022,0000474813,"1,576.62",Revenue,SELLICK PARTNERSHIP LTD,0
South Ribble Borough Council,http://statistics.data.gov.uk/id/local-authority/30UE,Central Support Services,Agency Staff,1121,COST OF ENGAGING AGENCY LOCUM SOLICITOR FOR 4 DAYS PER WEEK FROM 7 SEPTEMBER 2021 UNTIL CHRISTMAS 2021,26/01/2022,0000474880,"1,710.57",Revenue,SELLICK PARTNERSHIP LTD,0
South Ribble Borough Council,http://statistics.data.gov.uk/id/local-authority/30UE,Central Support Services,Agency Staff,1121,COST OF ENGAGING AGENCY LOCUM SOLICITOR FOR 4 DAYS PER WEEK FROM 7 SEPTEMBER 2021 UNTIL CHRISTMAS 2021,26/01/2022,0000475044,"1,999.56",Revenue,SELLICK PARTNERSHIP LTD,0
South Ribble Borough Council,http://statistics.data.gov.uk/id/local-authority/30UE,Central Support Services,Agency Staff,1121,COST OF ENGAGING AGENCY LOCUM SOLICITOR FOR 4 DAYS PER WEEK FROM 7 SEPTEMBER 2021 UNTIL CHRISTMAS 2021,26/01/2022,0000475180,"1,914.06",Revenue,SELLICK PARTNERSHIP LTD,0
South Ribble Borough Council,http://statistics.data.gov.uk/id/local-authority/30UE,Central Support Services,Clothing and Uniforms,4410,BOOTS - ROCKFALL EBONITE -SIZE 8 RF -EBONITE,19/01/2022,0000474620,69.80,Revenue,SMART IMAGE WORKWEAR,0
South Ribble Borough Council,http://statistics.data.gov.uk/id/local-authority/30UE,Central Support Services,Clothing and Uniforms,4410,BOOT LACES 150cm WLBLACES,19/01/2022,0000474620,9.00,Revenue,SMART IMAGE WORKWEAR,0
South Ribble Borough Council,http://statistics.data.gov.uk/id/local-authority/30UE,Central Support Services,Clothing and Uniforms,4410,BOOTS - ROCKFALL EBONITE - SIZE 9,19/01/2022,0000474620,104.70,Revenue,SMART IMAGE WORKWEAR,0
South Ribble Borough Council,http://statistics.data.gov.uk/id/local-authority/30UE,Central Support Services,Clothing and Uniforms,4410,BOOTS - ROCKFALL EBONITE - SIZE 11,19/01/2022,0000474620,139.60,Revenue,SMART IMAGE WORKWEAR,0
South Ribble Borough Council,http://statistics.data.gov.uk/id/local-authority/30UE,Community Development,Clothing and Uniforms,4410,"20 x Sapphire T-shirt (sizes various), 10 x Royal Blue Classic sweatshirt (sizes various), VAT",12/01/2022,0000474752,257.00,Revenue,SMART IMAGE WORKWEAR,0
South Ribble Borough Council,http://statistics.data.gov.uk/id/local-authority/30UE,Central Support Services,Clothing and Uniforms,4410,BOOTS - ROCKFALL EBONITE -SIZE 10  RF -EBONITE,19/01/2022,0000474803,104.70,Revenue,SMART IMAGE WORKWEAR,0
South Ribble Borough Council,http://statistics.data.gov.uk/id/local-authority/30UE,Central Support Services,Clothing and Uniforms,4410,BODYWARMER - WROXHAM FORTRESS -MEDIUM c/w SRBC Logo Front Left Breast in White EMB WM-WROX,19/01/2022,0000474803,53.76,Revenue,SMART IMAGE WORKWEAR,0
South Ribble Borough Council,http://statistics.data.gov.uk/id/local-authority/30UE,Central Support Services,Clothing and Uniforms,4410,BOMBER JACKET - PORTWEST C466 EXTA LARGE c/w SRBC LOGO FRONT LEFT BREAST & REAR HS COLOUR WJ-PWC466,19/01/2022,0000474803,150.08,Revenue,SMART IMAGE WORKWEAR,0
South Ribble Borough Council,http://statistics.data.gov.uk/id/local-authority/30UE,Central Support Services,Clothing and Uniforms,4410,BALLISTIC TROUSERS - NAVY 30'' REGULAR,19/01/2022,0000474247,31.40,Revenue,SMI Int Group Ltd,0
South Ribble Borough Council,http://statistics.data.gov.uk/id/local-authority/30UE,Central Support Services,Clothing and Uniforms,4410,BALLISTIC TROUSERS - NAVY 32'' REGULAR,19/01/2022,0000474247,31.40,Revenue,SMI Int Group Ltd,0
South Ribble Borough Council,http://statistics.data.gov.uk/id/local-authority/30UE,Central Support Services,Clothing and Uniforms,4410,BALLISTIC TROUSERS - NAVY 34'' REGULAR,19/01/2022,0000474247,219.80,Revenue,SMI Int Group Ltd,0
South Ribble Borough Council,http://statistics.data.gov.uk/id/local-authority/30UE,Central Support Services,Clothing and Uniforms,4410,BALLISTIC TROUSERS - NAVY 36'' REGULAR,19/01/2022,0000474247,157.00,Revenue,SMI Int Group Ltd,0
South Ribble Borough Council,http://statistics.data.gov.uk/id/local-authority/30UE,Central Support Services,Clothing and Uniforms,4410,BALLISTIC TROUSERS - NAVY 38'' REGULAR,19/01/2022,0000474247,157.00,Revenue,SMI Int Group Ltd,0
South Ribble Borough Council,http://statistics.data.gov.uk/id/local-authority/30UE,Central Support Services,Clothing and Uniforms,4410,BALLISTIC TROUSERS - NAVY 40'' REGULAR,19/01/2022,0000474247,188.40,Revenue,SMI Int Group Ltd,0
South Ribble Borough Council,http://statistics.data.gov.uk/id/local-authority/30UE,Central Support Services,Clothing and Uniforms,4410,BALLISTIC TROUSERS - NAVY 30'' TALL,19/01/2022,0000474247,15.70,Revenue,SMI Int Group Ltd,0
South Ribble Borough Council,http://statistics.data.gov.uk/id/local-authority/30UE,Central Support Services,Clothing and Uniforms,4410,BALLISTIC TROUSERS - NAVY 34'' TALL,19/01/2022,0000474247,31.40,Revenue,SMI Int Group Ltd,0
South Ribble Borough Council,http://statistics.data.gov.uk/id/local-authority/30UE,Central Support Services,Clothing and Uniforms,4410,BALLISTIC TROUSERS - NAVY 38'' TALL,19/01/2022,0000474247,31.40,Revenue,SMI Int Group Ltd,0
South Ribble Borough Council,http://statistics.data.gov.uk/id/local-authority/30UE,Central Support Services,Clothing and Uniforms,4410,BALLISTIC TROUSERS - NAVY 42'' TALL,19/01/2022,0000474247,15.70,Revenue,SMI Int Group Ltd,0
South Ribble Borough Council,http://statistics.data.gov.uk/id/local-authority/30UE,Central Support Services,Clothing and Uniforms,4410,BALLISTIC TROUSERS - NAVY 44'' TALL,19/01/2022,0000474247,15.70,Revenue,SMI Int Group Ltd,0
South Ribble Borough Council,http://statistics.data.gov.uk/id/local-authority/30UE,Central Support Services,Clothing and Uniforms,4410,FLEECE NAVY - SMALL c/w SRBC LOGO Front Left Breast in White EMB,19/01/2022,0000474627,18.30,Revenue,SMI Int Group Ltd,0
South Ribble Borough Council,http://statistics.data.gov.uk/id/local-authority/30UE,Central Support Services,Clothing and Uniforms,4410,FLEECE NAVY - MEDIUM c/w SRBC LOGO Front Left Breast in White EMB,19/01/2022,0000474627,118.95,Revenue,SMI Int Group Ltd,0
South Ribble Borough Council,http://statistics.data.gov.uk/id/local-authority/30UE,Central Support Services,Clothing and Uniforms,4410,FLEECE NAVY - EXTRA LARGE c/w SRBC LOGO Front Left Breast in White EMB,19/01/2022,0000474627,82.35,Revenue,SMI Int Group Ltd,0
South Ribble Borough Council,http://statistics.data.gov.uk/id/local-authority/30UE,Central Support Services,Clothing and Uniforms,4410,FLEECE NAVY - 2XL c/w SRBC LOGO Front Left Breast in White EMB,19/01/2022,0000474627,73.20,Revenue,SMI Int Group Ltd,0
South Ribble Borough Council,http://statistics.data.gov.uk/id/local-authority/30UE,Central Support Services,Clothing and Uniforms,4410,FLEECE NAVY - 3XL c/w SRBC LOGO Front Left Breast in White EMB,19/01/2022,0000474627,9.15,Revenue,SMI Int Group Ltd,0
South Ribble Borough Council,http://statistics.data.gov.uk/id/local-authority/30UE,Central Support Services,Clothing and Uniforms,4410,POLO SHIRT - SHORT SLEEVED NAVY - LARGE c/w SRBC LOGO FRONT LEFT BREAST HS WHITE,19/01/2022,0000474805,153.00,Revenue,SMI Int Group Ltd,0
South Ribble Borough Council,http://statistics.data.gov.uk/id/local-authority/30UE,Central Support Services,Clothing and Uniforms,4410,POLO SHIRT - SHORT SLEEVED NAVY - EXTRA LARGE c/w SRBC LOGO FRONT LEFT BREAST HS WHITE,19/01/2022,0000474805,119.00,Revenue,SMI Int Group Ltd,0
South Ribble Borough Council,http://statistics.data.gov.uk/id/local-authority/30UE,Central Support Services,Clothing and Uniforms,4410,POLO SHIRT - SHORT SLEEVED NAVY - 2XL c/w SRBC LOGO FRONT LEFT BREAST HS WHITE,19/01/2022,0000474805,38.25,Revenue,SMI Int Group Ltd,0
South Ribble Borough Council,http://statistics.data.gov.uk/id/local-authority/30UE,Central Support Services,Clothing and Uniforms,4410,POLO SHIRT - SHORT SLEEVED NAVY - 3XL c/w SRBC LOGO FRONT LEFT BREAST HS WHITE,19/01/2022,0000474805,12.75,Revenue,SMI Int Group Ltd,0
South Ribble Borough Council,http://statistics.data.gov.uk/id/local-authority/30UE,Central Support Services,Clothing and Uniforms,4410,POLO SHIRT LONG SLEEVED NAVY - SMALL c/w SRBC LOGO FRONT LEFT BREAST HS WHITE,19/01/2022,0000474805,13.95,Revenue,SMI Int Group Ltd,0
South Ribble Borough Council,http://statistics.data.gov.uk/id/local-authority/30UE,Central Support Services,Clothing and Uniforms,4410,POLO SHIRT LONG SLEEVED NAVY - MEDIUM c/w SRBC LOGO FRONT LEFT BREAST HS WHITE,19/01/2022,0000474805,27.90,Revenue,SMI Int Group Ltd,0
South Ribble Borough Council,http://statistics.data.gov.uk/id/local-authority/30UE,Central Support Services,Clothing and Uniforms,4410,POLO SHIRT LONG SLEEVED NAVY - LARGE c/w SRBC LOGO FRONT LEFT BREAST HS WHITE,19/01/2022,0000474805,41.85,Revenue,SMI Int Group Ltd,0
South Ribble Borough Council,http://statistics.data.gov.uk/id/local-authority/30UE,Central Support Services,Clothing and Uniforms,4410,POLO SHIRT LONG SLEEVED NAVY - EXTRA LARGE  c/w SRBC LOGO FRONT LEFT BREAST HS WHITE,19/01/2022,0000474805,37.20,Revenue,SMI Int Group Ltd,0
South Ribble Borough Council,http://statistics.data.gov.uk/id/local-authority/30UE,Central Support Services,Clothing and Uniforms,4410,POLO SHIRT LONG SLEEVED NAVY - 2XL c/w SRBC LOGO FRONT LEFT BREAST HS WHITE,19/01/2022,0000474805,13.95,Revenue,SMI Int Group Ltd,0
South Ribble Borough Council,http://statistics.data.gov.uk/id/local-authority/30UE,Central Support Services,Clothing and Uniforms,4410,POLO SHIRT LONG SLEEVED NAVY - 3XL c/w SRBC LOGO FRONT LEFT BREAST HS WHITE,19/01/2022,0000474805,4.65,Revenue,SMI Int Group Ltd,0
South Ribble Borough Council,http://statistics.data.gov.uk/id/local-authority/30UE,Central Support Services,Clothing and Uniforms,4410,SWEATSHIRT NAVY -SMALL c/w SRBC LOGO FRONT LEFT BREAST HS WHITE,19/01/2022,0000474805,38.10,Revenue,SMI Int Group Ltd,0
South Ribble Borough Council,http://statistics.data.gov.uk/id/local-authority/30UE,Central Support Services,Clothing and Uniforms,4410,SWEATSHIRT NAVY - MEDIUM c/w SRBC LOGO FRONT LEFT BREAST HS WHITE,19/01/2022,0000474805,69.85,Revenue,SMI Int Group Ltd,0
South Ribble Borough Council,http://statistics.data.gov.uk/id/local-authority/30UE,Central Support Services,Clothing and Uniforms,4410,SWEATSHIRT NAVY - LARGE c/w SRBC LOGO FRONT LEFT BREAST HS WHITE,19/01/2022,0000474805,177.80,Revenue,SMI Int Group Ltd,0
South Ribble Borough Council,http://statistics.data.gov.uk/id/local-authority/30UE,Central Support Services,Clothing and Uniforms,4410,SWEATSHIRT NAVY -EXTRA LARGE c/w SRBC LOGO FRONT LEFT BREAST HS WHITE,19/01/2022,0000474805,107.95,Revenue,SMI Int Group Ltd,0
South Ribble Borough Council,http://statistics.data.gov.uk/id/local-authority/30UE,Central Support Services,Clothing and Uniforms,4410,SWEATSHIRT NAVY -2XL c/w SRBC LOGO FRONT LEFT BREAST HS WHITE,19/01/2022,0000474805,57.15,Revenue,SMI Int Group Ltd,0
South Ribble Borough Council,http://statistics.data.gov.uk/id/local-authority/30UE,Central Support Services,Clothing and Uniforms,4410,SWEATSHIRT NAVY -3XL c/w SRBC LOGO FRONT LEFT BREAST HS WHITE,19/01/2022,0000474805,12.70,Revenue,SMI Int Group Ltd,0
South Ribble Borough Council,http://statistics.data.gov.uk/id/local-authority/30UE,Community Development,Core Fund,4861,Items for Boost Fund winter warmth project,12/01/2022,0000474806,660.00,Revenue,SNK Retailer,0
South Ribble Borough Council,http://statistics.data.gov.uk/id/local-authority/30UE,Central Support Services,Software Licensing,4243,"Acrobat for Teams renewal, Dreamweaver CC for teams licensing sub renewal level2, InDesign CC and Photoshop CC for Teams, Creative Cloud",27/01/2022,0000473691,"5,998.75",Revenue,SOFTCAT LIMITED,0
South Ribble Borough Council,http://statistics.data.gov.uk/id/local-authority/30UE,Short Term Creditors,Amount Paid,0030,monthly deductions,05/01/2022,0000474294,"1,403.92",Revenue,SOUTH RIBBLE LABOUR PARTY LOCAL GOVERNM,0
South Ribble Borough Council,http://statistics.data.gov.uk/id/local-authority/30UE,Central Support Services,External Contractors Charges,4570,1 x spec repair VO65KPZ JFC17600,12/01/2022,0000474563,765.00,Revenue,Southfield RCV Services Limited,0
South Ribble Borough Council,http://statistics.data.gov.uk/id/local-authority/30UE,Central Support Services,Hiring Expenses,3212,Hire of VIN REDACTED from 12.11.21 to 26.11.21,12/01/2022,0000474778,"1,800.00",Revenue,Southfield RCV Services Limited,0
South Ribble Borough Council,http://statistics.data.gov.uk/id/local-authority/30UE,Central Support Services,Hiring Expenses,3212,Hire of VIN REDACTED 15.11.21 -17.12.21,12/01/2022,0000474779,"3,750.00",Revenue,Southfield RCV Services Limited,0
South Ribble Borough Council,http://statistics.data.gov.uk/id/local-authority/30UE,Central Support Services,Materials General,4040,10 x bronze bushes- BIN 1134,12/01/2022,0000474622,86.00,Revenue,SPALDINGS,0
South Ribble Borough Council,http://statistics.data.gov.uk/id/local-authority/30UE,Central Support Services,Materials General,4040,12 x pivot bars- BIN 1252,12/01/2022,0000474622,222.60,Revenue,SPALDINGS,0
South Ribble Borough Council,http://statistics.data.gov.uk/id/local-authority/30UE,Central Support Services,Materials General,4040,4 x handle wheel adjuster- BIN1141,12/01/2022,0000474622,68.00,Revenue,SPALDINGS,0
South Ribble Borough Council,http://statistics.data.gov.uk/id/local-authority/30UE,Central Support Services,Materials General,4040,2 x bottom block- BIN1256,12/01/2022,0000474647,495.22,Revenue,SPALDINGS,0
South Ribble Borough Council,http://statistics.data.gov.uk/id/local-authority/30UE,Central Support Services,Materials General,4040,"4 x outer deck guard rubbers- BIN 1049, 6 x rollers- BIN1268, 4 x Rear LED Lamps- BIN1081",27/01/2022,0000475062,317.70,Revenue,SPALDINGS,0
South Ribble Borough Council,http://statistics.data.gov.uk/id/local-authority/30UE,Short Term Creditors,Amount Paid,0030,monthly deds,05/01/2022,0000474292,403.62,Revenue,ST CATHERINES HOSPICE PROMOTIONS LTD,0
South Ribble Borough Council,http://statistics.data.gov.uk/id/local-authority/30UE,Service Management & Support,Diesel Fuel,3132,"17,000 litres diesel @ 112.35ppl into the feeder tank at Unit 81 Bison Place, Moss Side",19/01/2022,0000474787,"19,111.86",Revenue,Standard Fuel Oils LtdMain,0
South Ribble Borough Council,http://statistics.data.gov.uk/id/local-authority/30UE,Service Management & Support,Gas Oil,3134,2000 litres gas oil @ 68.41 into tank 2,26/01/2022,0000475060,"1,368.20",Revenue,Standard Fuel Oils LtdMain,0
South Ribble Borough Council,http://statistics.data.gov.uk/id/local-authority/30UE,Service Management & Support,Diesel Fuel,3132,"16,000 litres diesel @ 113.67ppl into the feeder tank at Unit 81 Bison Place, Moss Side",26/01/2022,0000475061,"18,164.47",Revenue,Standard Fuel Oils LtdMain,0
South Ribble Borough Council,http://statistics.data.gov.uk/id/local-authority/30UE,Capital,Capital Grant,C570,DFG WORK TO SUPPLY AND INSTALL A STAIRLIFT AT ADDRESS REDACTED AS PER QUOTE SUPPLIED OF 2868.00,26/01/2022,0000475057,"2,868.00",Revenue,Stannah Lift Services Ltd,0
South Ribble Borough Council,http://statistics.data.gov.uk/id/local-authority/30UE,Capital,Capital Grant,C570,DFG WORK TO SUPPLY AND INSTALL A STAIRLIFT AT ADDRESS REDACTED AS PER QUOTE SUPPLIED OF 7073.00,26/01/2022,0000475058,"6,973.00",Revenue,Stannah Lift Services Ltd,0
South Ribble Borough Council,http://statistics.data.gov.uk/id/local-authority/30UE,Capital,Capital Grant,C570,DFG WORK TO SUPPLY AND INSTALL A STARILIFT AT ADDRESS REDACTED AS PER SRBC SPECIFICATION AND QUOTE SUPPLIED,26/01/2022,0000475059,"2,933.88",Revenue,Stannah Lift Services Ltd,0
South Ribble Borough Council,http://statistics.data.gov.uk/id/local-authority/30UE,Capital,Cap Contract Payment,C230,Costs for Stage 2 of the Business Case Development scheme for Leyland Town Deal,19/01/2022,0000474764,"25,058.33",Revenue,Steer Davies & Gleave Ltd,0
South Ribble Borough Council,http://statistics.data.gov.uk/id/local-authority/30UE,Capital,Cap Contract Payment,C230,"Provision of Mechanical, Electrical and Plumbing Services to RIBA Stage 3 for the Leyland Town Deal Development",19/01/2022,0000474746,"7,170.00",Revenue,STEVEN A HUNT & ASSOCIATES LTD,0
South Ribble Borough Council,http://statistics.data.gov.uk/id/local-authority/30UE,Community Development,External Catering Charges,4575,Food for the HAF project for December,12/01/2022,0000474773,"5,200.00",Revenue,Style Catering,0
South Ribble Borough Council,http://statistics.data.gov.uk/id/local-authority/30UE,Community Development,Miscellaneous Expenses,4851,"Skip hire, waste removal and disposal, delivery x2, Removal x 2, Plus waste disposal is 125 per tonne",26/01/2022,0000475194,"1,153.38",Revenue,SUEZ  RECYCLING AND REC UK LTD,0
South Ribble Borough Council,http://statistics.data.gov.uk/id/local-authority/30UE,Open Spaces,GM Refurbishment,4657,K&K Swing spares as per quotation CG201021C,05/01/2022,0000474152,257.14,Revenue,SUTCLIFFE PLAY LTD,0
South Ribble Borough Council,http://statistics.data.gov.uk/id/local-authority/30UE,Corporate Management,Miscellaneous Expenses,4851,Time Credits Support Qtr 3. Oct - Dec 21.,12/01/2022,0000474277,"10,753.75",Revenue,Tempo Time Credits Ltd,0
South Ribble Borough Council,http://statistics.data.gov.uk/id/local-authority/30UE,Central Support Services,Operational Equip & Tools,4010,LITTER PICKER - RANGER MAX LP3035 - 35'',26/01/2022,0000474963,671.30,Revenue,The Helping Hand Company,0
South Ribble Borough Council,http://statistics.data.gov.uk/id/local-authority/30UE,Central Support Services,External Contractors Charges,4570,"Hurst Grange Coach House AP and FG deployment, Assumes spare Cisco AP can be reutilised from Chorley Council Union St site",19/01/2022,0000474753,"1,613.64",Revenue,The Networking People (TNP) Ltd,0
South Ribble Borough Council,http://statistics.data.gov.uk/id/local-authority/30UE,Central Support Services,Agency Staff,1121,"For Agency Staff, NAME REDACTED",19/01/2022,0000474561,"1,400.00",Revenue,The Oyster Partnership,0
South Ribble Borough Council,http://statistics.data.gov.uk/id/local-authority/30UE,Central Support Services,Agency Staff,1121,"For Agency Staff, NAME REDACTED",12/01/2022,0000474632,"1,400.00",Revenue,The Oyster Partnership,0
South Ribble Borough Council,http://statistics.data.gov.uk/id/local-authority/30UE,Central Support Services,Reference Books,4142,schof r59,26/01/2022,0000474981,144.00,Revenue,THOMSON REUTERS,0
South Ribble Borough Council,http://statistics.data.gov.uk/id/local-authority/30UE,Central Support Services,Reference Books,4142,non vat part,26/01/2022,0000474981,144.00,Revenue,THOMSON REUTERS,0
South Ribble Borough Council,http://statistics.data.gov.uk/id/local-authority/30UE,Central Support Services,Reference Books,4142,schof r60,26/01/2022,0000474982,144.00,Revenue,THOMSON REUTERS,0
South Ribble Borough Council,http://statistics.data.gov.uk/id/local-authority/30UE,Central Support Services,Reference Books,4142,schof r60 non vat,26/01/2022,0000474982,144.00,Revenue,THOMSON REUTERS,0
South Ribble Borough Council,http://statistics.data.gov.uk/id/local-authority/30UE,Central Support Services,Reference Books,4142,schof R61,26/01/2022,0000474983,144.00,Revenue,THOMSON REUTERS,0
South Ribble Borough Council,http://statistics.data.gov.uk/id/local-authority/30UE,Central Support Services,Reference Books,4142,schof r61 non vat,26/01/2022,0000474983,144.00,Revenue,THOMSON REUTERS,0
South Ribble Borough Council,http://statistics.data.gov.uk/id/local-authority/30UE,Central Support Services,Technical Support,4246,ONLINE SERVICES (205752) ANNUAL SUBSCRIPTION PERIOD: 1.01.2022 - 31/12/2022,26/01/2022,0000475223,"21,079.20",Revenue,THOMSON REUTERS,0
South Ribble Borough Council,http://statistics.data.gov.uk/id/local-authority/30UE,Central Support Services,Electricity,2303,01/11/21 - 30/11/21,12/01/2022,0000473950,"2,870.88",Revenue,Total Gas & power Ltd,0
South Ribble Borough Council,http://statistics.data.gov.uk/id/local-authority/30UE,Open Spaces,Electricity,2303,01/11/21 - 30/11/21,12/01/2022,0000473959,645.35,Revenue,Total Gas & power Ltd,0
South Ribble Borough Council,http://statistics.data.gov.uk/id/local-authority/30UE,Open Spaces,Gas,2304,01/11/21 - 30/11/21,12/01/2022,0000473960,"1,403.99",Revenue,Total Gas & power Ltd,0
South Ribble Borough Council,http://statistics.data.gov.uk/id/local-authority/30UE,Surplus or Deficit on Trading,Gas,2304,31/10/21 - 30/,12/01/2022,0000474137,262.32,Revenue,Total Gas & power Ltd,0
South Ribble Borough Council,http://statistics.data.gov.uk/id/local-authority/30UE,Open Spaces,Electricity,2303,1/12 to 31/12/21,26/01/2022,0000474899,"3,682.36",Revenue,Total Gas & power Ltd,0
South Ribble Borough Council,http://statistics.data.gov.uk/id/local-authority/30UE,Central Support Services,Electricity,2303,1/12 to 31/12/21,19/01/2022,0000474901,"2,854.41",Revenue,Total Gas & power Ltd,0
South Ribble Borough Council,http://statistics.data.gov.uk/id/local-authority/30UE,Tourism,Electricity,2303,1/12 to 31/12/21,26/01/2022,0000475050,"1,560.52",Revenue,Total Gas & power Ltd,0
South Ribble Borough Council,http://statistics.data.gov.uk/id/local-authority/30UE,Central Support Services,UK Healthcare,1710,01 january 2022,19/01/2022,0000474903,"1,504.21",Revenue,UK healthcare (BDHSC),0
South Ribble Borough Council,http://statistics.data.gov.uk/id/local-authority/30UE,Economic Development,Miscellaneous Expenses,4851,"Music in the Park/Leyland Festival: Staging Infrastructure, Power Provision, Sound , Lighting, Video, Plant, Services",05/01/2022,0000474254,"13,403.75",Revenue,UK Media Events Ltd,0
South Ribble Borough Council,http://statistics.data.gov.uk/id/local-authority/30UE,Street Cleansing,External Contractors Charges,4570,The cleaning of highway signs,19/01/2022,0000474173,"1,560.00",Revenue,ULTRA CLEAN CONSERVATORIES,0
South Ribble Borough Council,http://statistics.data.gov.uk/id/local-authority/30UE,Democratic Represent and  Mgnt,Cost of Drinks,4311,Stock for coffee machines 13.12.21,12/01/2022,0000474579,358.80,Revenue,VENDING ENTERPRISES,0
South Ribble Borough Council,http://statistics.data.gov.uk/id/local-authority/30UE,Surplus or Deficit on Trading,Agency Staff,1121,Interim Estates Surveyor position NAME REDACTED to provide professions surveying services for the duration of the contract,19/01/2022,0000474228,775.50,Revenue,Vivid Resourcing,0
South Ribble Borough Council,http://statistics.data.gov.uk/id/local-authority/30UE,Surplus or Deficit on Trading,Agency Staff,1121,Interim Estates Surveyor position NAME REDACTED to provide professions surveying services for the duration of the contract,19/01/2022,0000474630,"1,762.50",Revenue,Vivid Resourcing,0
South Ribble Borough Council,http://statistics.data.gov.uk/id/local-authority/30UE,Surplus or Deficit on Trading,Agency Staff,1121,Interim Estates Surveyor position NAME REDACTED to provide professions surveying services for the duration of the contract,19/01/2022,0000474808,"1,551.00",Revenue,Vivid Resourcing,0
South Ribble Borough Council,http://statistics.data.gov.uk/id/local-authority/30UE,Surplus or Deficit on Trading,Agency Staff,1121,Interim Estates Surveyor position NAME REDACTED to provide professions surveying services for the duration of the contract,19/01/2022,0000474872,"1,598.00",Revenue,Vivid Resourcing,0
South Ribble Borough Council,http://statistics.data.gov.uk/id/local-authority/30UE,Surplus or Deficit on Trading,Water Charges(Metered),2511,4/8 to 23/11/21,19/01/2022,0000474731,17.92,Revenue,WATER PLUS,0
South Ribble Borough Council,http://statistics.data.gov.uk/id/local-authority/30UE,Surplus or Deficit on Trading,Water Charges(Metered),2511,non-vat,19/01/2022,0000474731,253.55,Revenue,WATER PLUS,0
South Ribble Borough Council,http://statistics.data.gov.uk/id/local-authority/30UE,Central Support Services,Water Charges(Metered),2511,23/11 to 13/12/21,19/01/2022,0000474962,"1,447.61",Revenue,WATER PLUS,0
South Ribble Borough Council,http://statistics.data.gov.uk/id/local-authority/30UE,Open Spaces,GM Refurbishment,4657,To supply and install 8x Christmas Trees as per quotation of 9th September 2021 8x trees @ 1248.76 each,12/01/2022,0000473713,"9,990.08",Revenue,WESTFIELD TREE SERVICES LTD,0
South Ribble Borough Council,http://statistics.data.gov.uk/id/local-authority/30UE,Capital,Cap Vehicles,C440,Supply and delivery of two 3500kg Tipper Vehicles as per Lot 2 & 3 of the invitation to quote response dated 05/12/2019,12/01/2022,0000474107,"28,602.80",Revenue,Westway Nissan,0
South Ribble Borough Council,http://statistics.data.gov.uk/id/local-authority/30UE,Capital,Cap Vehicles,C440,road tax & 1st REG,12/01/2022,0000474107,315.00,Revenue,Westway Nissan,0
South Ribble Borough Council,http://statistics.data.gov.uk/id/local-authority/30UE,Surplus or Deficit on Trading,Professional Fees,4510,For the provision of works for a Stock condition surveys to all SRBC commercial and investment stock,12/01/2022,0000474654,"1,250.00",Revenue,WhiteleyEaves Limited,0
South Ribble Borough Council,http://statistics.data.gov.uk/id/local-authority/30UE,Capital,Cap Contract Payment,C230,STRUCTURAL AND DRAINAGE SERVICES TO RIBA STAGE 3 FOR THE LEYLAND TOWN DEAL DEVELOPMENT,19/01/2022,0000474557,"13,477.24",Revenue,Woolgar Hunter Limited,0
South Ribble Borough Council,http://statistics.data.gov.uk/id/local-authority/30UE,Capital,Cap Contract Payment,C230,Provision of Specialist Consultancy Support - Market Improvements (Leyland Town Deal Project),26/01/2022,0000474991,"4,375.00",Revenue,Workman LLP,0
South Ribble Borough Council,http://statistics.data.gov.uk/id/local-authority/30UE,Capital,Cap Contract Payment,C230,cancelled by credit cr007747,26/01/2022,0000475053,"8,750.00",Revenue,Workman LLP,0
South Ribble Borough Council,http://statistics.data.gov.uk/id/local-authority/30UE,Capital,Capital Grant,C570,"DFG WORK TO ADAPT A BATHROOM AT ADDRESS REDACTED AS PER SRBC SPEC AND YOUR QUOTE, 50% COST COVERED",12/01/2022,0000474658,"2,310.50",Revenue,Wright Build Limited,0
